{"text_format":"2","workbook":"xlsx","n_sheets":3,"sheets":["المستحدثة","الملغاة","Sheet2"],"not_rendered":{"charts":0,"images":0,"macros":0,"external_links":0,"defined_names":1,"comments":0,"pivot_tables":0},"unopened":[],"bounds":{"document_bytes":16777216,"sheet_cells":100000,"run_cost":"one","rows_first":2000,"rows_last":500,"rows_between":2000,"halvings":0,"cell_chars":16384,"cell_head_chars":4096},"cells_cut":0,"cells_raw":0,"read":"whole","date_system":"1900"}

{"sheet":"المستحدثة","index":0,"n_rows":240,"n_cols":6,"rows_kept":240,"cut":false,"hidden":true,"merged":[[13,1,13,4],[237,0,237,5],[238,0,238,5],[239,0,239,5],[0,0,0,1],[231,0,231,5],[232,0,232,5],[233,0,233,5],[1,0,1,5],[227,0,227,4],[34,1,34,4],[77,1,77,4],[20,1,20,4],[53,1,53,4],[22,1,22,4]]}
["    مديرية ماء صلاح الدين"]
["اعمال اعادة تاهيل مشروع ماء بيجي الموحد (3000 م3/سا)"]
["ت","التفاصيل","الوحدة","الكمية","السعر  ","المبلغ  "]
[null,"اولا : هيكل السحب"]
[1,"تجهيز المواد والمعدات اللازمة لتأهيل هيكل السحب ويشمل العمل ما يلي \n• قلع كافة الأجزاء الحديدية للهيكل  المتضررة واستبدالها بأجزاء جديدة وحسب القياسات الموجودة  مع اطالة هيكل السحب بمسافة 15 متر داخل النهر بواسطة دق حديد الشيلمان  (نوع H) بيم في النهر مع لحيم الرباطات والجسور في ما بينها وربطه بالهيكل الموجود وباستخدام حديد شيلمان(300×225) ملم ..وتوجيهات المهندس المشرف.","جملة","جملة",70000000,70000000]
[2,"تجهيز المواد والقيام بعمل محجر حديدي من أنابيب مغلونة (40)ملم ارتفاع (1.5) م   على الجانبين. مع كل ما يتطلبة العمل وحسب توجيهات المهندس المشرف.\n\n","جملة","جملة",3500000,3500000]
[4," عمل جسر حديدي للكرين المتحرك وبثلاث اتجاهات وبطول 80 متر من شيلمان (300×225) ملم (نوع H) بيم. مع كل ما يتطلبة العمل .","جملة","جملة",10000000,10000000]
[5,"• عمل ممشى من حديد (جكر بليت ) سمك 6 ملم وبعرض 1.5 متر على طول الهيكل مع المماشي الجانبية للهيكل .  مع كل ما يتطلبة العمل وتوجيهات المهندس المشرف ","جملة","جملة",6500000,6500000]
[6,"• تجهيز المواد والقيام بطلاء هيكل السحب بالكامل بمادة مانع الصدا ثلاث قوط . مع طلائه بطبقة رابعة بطلاء زيتي وحسب توجيهات المهندس المشرف ","جملة","جملة",3000000,3000000]
[7," تجهيز مواد ومعدات والقيام بعمل تكسية حجرية حول هيكل السحب  بأستخدام الحجر الناجح في الفحص المختبري ويشمل السعر عمل فلتر من الحصى الناعم وتثبيت انابيب تصريف مع كل مايتطلبه العمل . ويشمل العمل عمل سن صخري داخل النهر وبطول 20 متر وحسب المواصفات الفنية وتوجيهات المهندس المشرف","م3",300,500000,{"$f":"E10*D10","v":150000000}]
[8,"تجهيز ونصب مصابيح تحذير كهربائية عدد/ 3 . مع بلاجكتور 400 واط زئبقي عدد /4 مع تسليك الاسلاك الكهربائية وعمل بورد كهربائي خاص بها مع كل ما يتطلبة العمل   والتشغيل .","جملة","جملة",1000000,1000000]
[9,"• عمل مصدات مائية لهيكل السحب تبعد عنه مسافة (3)م من كل الجوانب .ويعتمد ارتفاع المصدات على تحديد اعلى منسوب لنهر دجلة مقارنة بهيكل السحب الجديد ويكون بارز عن مستوى النهر بارتفاع (30)سم.","جملة","جملة",15000000,15000000]
[10,"• عمل منظومة غسل عكسي .لغسل وتنظيف الممصات العائدة لمحطة السحب.","جملة","جملة",7500000,7500000]
[null,"المجموع / ",null,null,null,{"$f":"SUM(F5:F13)","v":266500000}]
[null,"ثانيا : محطة السحب الواطئ",null,null,null,{"$f":"SUM(F5:F13)","v":266500000}]
[{"$f":"A15+1","v":1},"\nتجهيز المواد والالات اللازمة لتبديل انابيب دكتايل دبل فلانج التي تربط مضخات السحب الواطئ مع ممصات السحب مع العكوس وغيرها مع كل ما يتطلبه العمل وحسب ما ياتي :-\nأ – تجهيز انبوب دكتايل (500) ملم مع كافة الملحقات (450) م.ط\nب - تجهيز انبوب دكتايل (300) ملم مع كافة الملحقات (250)م.ط\n","جملة","جملة",136500000,136500000]
[2,"تجهيز وربط وفحص وتشغيل ممصات السحب وحسب الاقطار المدرجة في ادناه على ان تكون (ستانلس ستيل) غربية المنشا وجديدة          1- قطر (300) ملم عدد/3                                                2- قطر (500) ملم عدد/5                                               مع كل ما يتطلبه العمل من قطع ولحام مع منظومة الاملاء وحسب توجيهات المهندس المشرف ","جملة","جملة",18000000,18000000]
[3,"تجهيز وربط ونصب وفحص مضخات السحب الواطئ (سبلت كيس) (600م3/سا ×20م) مع المحرك الكهربائي  مع ستارتر جديد ويتظمن   ( قاطع دورة وكونتاكتر واوفرلود وتايمر وكيج اضوية ومصابيح واسلاك وكيبلات )وتكون لوحات السيطرة الرئيسية ذات نمط تشغيل (سوفت ستار) مع تجهيز المحركات الكهربائية بحساسات حرارية (متحسس حراري) وميكانيكا  يحتوي على قاطع دوره نوع (RCCD) مع تجهيز قابلو (يتم تحديد حجمه حسب الكيلوواطية للمضخة من المضخة الى الستارتر ومن الستارتر الى لوحة السيطرة الرئيسية مع كل ما يتطلبه العمل على ان تكون جميع التسليكات الداخلية للبورد الكهربائي بواسطة بازبارات نحاسية وحسب توجيهات المهندس المشرف مع تجهيز مواد احتياطية للمضخة تشم ( بولبرنات مع شفت مع بشارة مع اطواق ) وعلى ان تكون جميع المواد المجهزه غربية المنشا وجديدة","عدد",3,40000000,{"$f":"E18*D18","v":120000000}]
[4,"تجهيز وربط ونصب وفحص مضخات السحب الواطئ (سبلت كيس)   (900م3/سا ×20م) مع المحرك الكهربائي  مع ستارتر جديد ويتظمن   ( قاطع دورة وكونتاكتر واوفرلود وتايمر وكيج اضوية ومصابيح واسلاك وكيبلات )وتكون لوحات السيطرة الرئيسية ذات نمط تشغيل (سوفت ستار) مع تجهيز المحركات الكهربائية بحساسات حرارية (متحسس حراري) وميكانيكا  يحتوي على قاطع دوره نوع (RCCD) مع تجهيز قابلو (يتم تحديد حجمه حسب الكيلوواطية للمضخة من المضخة الى الستارتر ومن الستارتر الى لوحة السيطرة الرئيسية مع كل ما يتطلبه العمل على ان تكون جميع التسليكات الداخلية للبورد الكهربائي بواسطة بازبارات نحاسية وحسب توجيهات المهندس المشرف مع تجهيز مواد احتياطية للمضخة تشم ( بولبرنات مع شفت مع بشارة مع اطواق ) وعلى ان تكون جميع المواد المجهزه غربية المنشا وجديدة","عدد",5,50000000,{"$f":"E19*D19","v":250000000}]
[5,"تجهيز المواد والمعدات اللازمة لتبديل مجموعة اقفال و صمامات محطة الرفع الواطئ  مختلفة الاحجام والاقطار وحسب واقع الحال ووكل مجموعة تضم ( صمامات من جهة السحب والدفع وعدم رجوع لكل مضخة ) مع كل ما هو مطلوب لضمان الاداء الجيد وبدون تسريب ويجب صبغ كل الصمامات باستخدام طلاء اوكسيد احمر وبعده صبغ زيتي لماع ذو نوعية جيدة وحسب توجيهات المهندس المشرف ","مجوعة",8,5000000,{"$f":"E20*D20","v":40000000}]
[null,"المجموع / ",null,null,null,{"$f":"SUM(F16:F20)","v":564500000}]
[null,"ثانيا : هيكل السحب"]
[null,"المجموع / ",null,null,null,{"$f":"SUM(F16:F19)","v":524500000}]
[null,"ثالثا :محطة الدفع"]
[1,"تجهيز وربط ونصب وفحص مضخات الدفع لجنوب بيجي (سبلت كيس) (840م3/سا ×80م) مع المحرك الكهربائي   مع ستارتر جديد ويتظمن ( قاطع دورة وكونتاكتر واوفرلود وتايمر وكيج اضوية ومصابيح واسلاك وكيبلات ) وتكون لوحات السيطرة الرئيسية ذات نمط تشغيل (سوفت ستار) مع تجهيز المحركات الكهربائية بحساسات حرارية (متحسس حراري) وميكانيكا ويحتوي على قاطع دوره نوع (RCCD)  مع تجهيز قابلو (يتم تحديد حجمه حسب الكيلوواطية للمضخة من المضخة الى الستارتر ومن الستارتر الى لوحة السيطرة الرئيسية على ان تكون جميع التسليكات الداخلية للبورد الكهربائي بواسطة بازبارات نحاسية مع كل ما يتطلبه العمل   وحسب توجيهات المهندس المشرف مع تجهيز مواد احتياطية للمضخة تشمل   ( بولبرنات مع شفت مع بشارة مع اطواق مع كوبلن ) وعلى ان تكون جميع المواد المجهزه غربية المنشا ","عدد",2,70000000,{"$f":"D25*E25","v":140000000}]
[2,"تجهيز وربط ونصب وفحص مضخات الدفع لجنوب بيجي (سبلت كيس) (420م3/سا ×80م) ع المحرك الكهربائي  مع ستارتر جديد ويتظمن   ( قاطع دورة وكونتاكتر واوفرلود وتايمر وكيج اضوية ومصابيح واسلاك وكيبلات )وتكون لوحات السيطرة الرئيسية ذات نمط تشغيل (سوفت ستار) مع تجهيز المحركات الكهربائية بحساسات حرارية (متحسس حراري) وميكانيكا  يحتوي على قاطع دوره نوع (RCCD) مع تجهيز قابلو (يتم تحديد حجمه حسب الكيلوواطية للمضخة من المضخة الى الستارتر ومن الستارتر الى لوحة السيطرة الرئيسية مع كل ما يتطلبه العمل على ان تكون جميع التسليكات الداخلية للبورد الكهربائي بواسطة بازبارات نحاسية وحسب توجيهات المهندس المشرف مع تجهيز مواد احتياطية للمضخة تشم ( بولبرنات مع شفت مع بشارة مع اطواق ) وعلى ان تكون جميع المواد المجهزه غربية المنشا وجديدة","عدد",2,40000000,{"$f":"E26*D26","v":80000000}]
[3,"تجهيز وربط ونصب وفحص مضخات الدفع لجنوب بيجي (سبلت كيس) (140م3/سا ×80م) مع المحرك الكهربائي   مع ستارتر جديد ويتظمن ( قاطع دورة وكونتاكتر واوفرلود وتايمر وكيج اضوية ومصابيح واسلاك وكيبلات ) وتكون لوحات السيطرة الرئيسية ذات نمط تشغيل (سوفت ستار) مع تجهيز المحركات الكهربائية بحساسات حرارية (متحسس حراري) وميكانيكا مع تجهيز قابلو (يتم تحديد حجمه حسب الكيلوواطية للمضخة من المضخة الى الستارتر ومن الستارتر الى لوحة السيطرة الرئيسية على ان تكون جميع التسليكات الداخلية للبورد الكهربائي بواسطة بازبارات نحاسية مع كل ما يتطلبه العمل   وحسب توجيهات المهندس المشرف مع تجهيز مواد احتياطية للمضخة تشمل   ( بولبرنات مع شفت مع بشارة مع اطواق مع كوبلن ) وعلى ان تكون جميع المواد المجهزه غربية المنشا ","عدد",2,25000000,50000000]
[4,"تجهيز وربط ونصب وفحص مضخات الدفع لشمال بيجي (سبلت كيس) (720م3/سا ×70م) مع المحرك الكهربائي  مع ستارتر جديد ويتظمن   ( قاطع دورة وكونتاكتر واوفرلود وتايمر وكيج اضوية ومصابيح واسلاك وكيبلات )وتكون لوحات السيطرة الرئيسية ذات نمط تشغيل (سوفت ستار) مع تجهيز المحركات الكهربائية بحساسات حرارية (متحسس حراري) وميكانيكا  يحتوي على قاطع دوره نوع (RCCD) مع تجهيز قابلو (يتم تحديد حجمه حسب الكيلوواطية للمضخة من المضخة الى الستارتر ومن الستارتر الى لوحة السيطرة الرئيسية مع كل ما يتطلبه العمل على ان تكون جميع التسليكات الداخلية للبورد الكهربائي بواسطة بازبارات نحاسية وحسب توجيهات المهندس المشرف مع تجهيز مواد احتياطية للمضخة تشم ( بولبرنات مع شفت مع بشارة مع اطواق ) وعلى ان تكون جميع المواد المجهزه غربية المنشا وجديدة","عدد",2,65000000,130000000]
[5,"تجهيز وربط ونصب وفحص مضخات الدفع لشمال بيجي (سبلت كيس) (360م3/سا ×70م) ع المحرك الكهربائي  مع ستارتر جديد ويتظمن   ( قاطع دورة وكونتاكتر واوفرلود وتايمر وكيج اضوية ومصابيح واسلاك وكيبلات )وتكون لوحات السيطرة الرئيسية ذات نمط تشغيل (سوفت ستار) مع تجهيز المحركات الكهربائية بحساسات حرارية (متحسس حراري) وميكانيكا  يحتوي على قاطع دوره نوع (RCCD) مع تجهيز قابلو (يتم تحديد حجمه حسب الكيلوواطية للمضخة من المضخة الى الستارتر ومن الستارتر الى لوحة السيطرة الرئيسية مع كل ما يتطلبه العمل على ان تكون جميع التسليكات الداخلية للبورد الكهربائي بواسطة بازبارات نحاسية وحسب توجيهات المهندس المشرف مع تجهيز مواد احتياطية للمضخة تشم ( بولبرنات مع شفت مع بشارة مع اطواق ) وعلى ان تكون جميع المواد المجهزه غربية المنشا وجديدة","عدد",2,30000000,60000000]
[6,"تجهيز وربط ونصب وفحص مضخات الدفع لشمال بيجي (سبلت كيس) (120م3/سا ×70م) مع المحرك الكهربائي  مع ستارتر جديد ويتظمن   ( قاطع دورة وكونتاكتر واوفرلود وتايمر وكيج اضوية ومصابيح واسلاك وكيبلات )وتكون لوحات السيطرة الرئيسية ذات نمط تشغيل (سوفت ستار) مع تجهيز المحركات الكهربائية بحساسات حرارية (متحسس حراري) وميكانيكا  يحتوي على قاطع دوره نوع (RCCD) مع تجهيز قابلو (يتم تحديد حجمه حسب الكيلوواطية للمضخة من المضخة الى الستارتر ومن الستارتر الى لوحة السيطرة الرئيسية مع كل ما يتطلبه العمل على ان تكون جميع التسليكات الداخلية للبورد الكهربائي بواسطة بازبارات نحاسية وحسب توجيهات المهندس المشرف مع تجهيز مواد احتياطية للمضخة تشم ( بولبرنات مع شفت مع بشارة مع اطواق ) وعلى ان تكون جميع المواد المجهزه غربية المنشا وجديدة","عدد",2,20000000,40000000]
[7,"تجهيز وربط ونصب وفحص مضخات الدفع الصينية (سبلت كيس) (600م3/سا ×85م) مع المحرك الكهربائي  مع ستارتر جديد ويتظمن   ( قاطع دورة وكونتاكتر واوفرلود وتايمر وكيج اضوية ومصابيح واسلاك وكيبلات )وتكون لوحات السيطرة الرئيسية ذات نمط تشغيل (سوفت ستار) مع تجهيز المحركات الكهربائية بحساسات حرارية (متحسس حراري) وميكانيكا  يحتوي على قاطع دوره نوع (RCCD) مع تجهيز قابلو (يتم تحديد حجمه حسب الكيلوواطية للمضخة من المضخة الى الستارتر ومن الستارتر الى لوحة السيطرة الرئيسية مع كل ما يتطلبه العمل على ان تكون جميع التسليكات الداخلية للبورد الكهربائي بواسطة بازبارات نحاسية وحسب توجيهات المهندس المشرف مع تجهيز مواد احتياطية للمضخة تشم ( بولبرنات مع شفت مع بشارة مع اطواق ) وعلى ان تكون جميع المواد المجهزه غربية المنشا وجديدة","عدد",2,60000000,120000000]
[8,"تجهيز وربط ونصب وفحص مضخات الدفع الحجاج (سبلت كيس) (200م3/سا ×110م) مع المحرك الكهربائي  مع ستارتر جديد ويتظمن   ( قاطع دورة وكونتاكتر واوفرلود وتايمر وكيج اضوية ومصابيح واسلاك وكيبلات )وتكون لوحات السيطرة الرئيسية ذات نمط تشغيل (سوفت ستار) مع تجهيز المحركات الكهربائية بحساسات حرارية (متحسس حراري) وميكانيكا  يحتوي على قاطع دوره نوع (RCCD) مع تجهيز قابلو (يتم تحديد حجمه حسب الكيلوواطية للمضخة من المضخة الى الستارتر ومن الستارتر الى لوحة السيطرة الرئيسية مع كل ما يتطلبه العمل على ان تكون جميع التسليكات الداخلية للبورد الكهربائي بواسطة بازبارات نحاسية وحسب توجيهات المهندس المشرف مع تجهيز مواد احتياطية للمضخة تشم ( بولبرنات مع شفت مع بشارة مع اطواق ) وعلى ان تكون جميع المواد المجهزه غربية المنشا وجديدة","عدد",2,30000000,60000000]
[9,"تبديل خزانات مخفظ الصدمة للمشروع ","عدد",4,5000000,20000000]
[10,"تجهيز المواد والمعدات اللازمة لتبديل مجموعة اقفال وصمامات محطة الدفع العالي وكل مجموعة تضم ( صمامات من جهة السحب والدفع للمضخة وعدم رجوع لكل مضخة ) مع كل ما هو مطلوب لضمان الاداء الجيد وبدون تسريب ويجب صبغ كل الصمامات باستخدام طلاء اوكسيد احمر وبعده صبغ زيتي لماع ذو نوعية جيدة\n\n","مجوعة",16,5000000,80000000]
[null,"المجموع / ",null,null,null,{"$f":"SUM(F25:F34)","v":780000000}]
[null,"رابعا : الاعمال الكهربائية"]
[null,"أ- محطة السحب الواطئ"]
[1,"القيام بتجهيز  لوحة اسيطرة رئيسية وتشمل قاطع دورة رئيسي نوع (موتورايز) وحسب السعة التي تحددها لجنة الاشراف مع تجهيز وتركيب قواطع دورة ذو حمايات مدمجة لكل مضخة وقاطع خاص بالانارة والخدمات ويكون داخل بورد حديدي مصنوع ممن البليت سمك (2) ملم مع الصبغ الحراري مع تجهيز مقاييس (فولتية مع امبير مع هيرتز)  لكل قاطع وتكون التوصيلات الداخلية بازبار ويحتوي على قاطع دوره نوع (RCCD) شاملا السعر مد وربط قابلو (يتم تحديد حجمه من قبل لجنة الاشراف يربط بين القاطع الرئيسي الى القواطع الفرعية وكذلك القابلو الرئيسي الذي يغذي قاطع الموتورايزويكون البورد الكهربائي مكيف (تبريد) سبلت كنتوري(4) طن مع كل ما يتطلبه العمل وحسب توجيهات المهندس المشرف .\n","جملة","جملة ",25000000,25000000]
[2,"تجهيز ومد وربط قابلو كهربائي حجم (3×240+120) ملم2 (غربي او سعودي او اردني) من محطة السيطرة الرئيسية للمشروع الى محطة السحب مع كل ما يتطلبه العمل من اعمال حفريات ودفن واعادة الشوارع الى ما كانت عليه قبل العمل وحسب توجيهات المهندس المشرف","م.ط",700,150000,{"$f":"E39*D39","v":105000000}]
[null,"ب - محطة الدفع"]
[1,"القيام بتجهيز  لوحة اسيطرة رئيسية وتشمل قاطع دورة رئيسي نوع (موتورايز) وحسب السعة التي تحددها لجنة الاشراف مع تجهيز وتركيب قواطع دورة ذو حمايات مدمجة لكل مضخة وقاطع خاص بالانارة والخدمات ويكون داخل بورد حديدي مصنوع ممن البليت سمك (2) ملم مع الصبغ الحراري مع تجهيز مقاييس (فولتية مع امبير مع هيرتز)  لكل قاطع وتكون التوصيلات الداخلية بازبار ويحتوي على قاطع دوره نوع (RCCD) شاملا السعر مد وربط قابلو (يتم تحديد حجمه من قبل لجنة الاشراف يربط بين القاطع الرئيسي الى القواطع الفرعية وكذلك القابلو الرئيسي الذي يغذي قاطع الموتورايز ويكون البورد الكهربائي مكيف (تبريد) سبلت كنتوري(4) طن مع كل ما يتطلبه العمل وحسب توجيهات المهندس المشرف .\n","جملة","جملة ",35000000,35000000]
[2,"تجهيز ومد وربط قابلو كهربائي حجم (3×240+120) ملم2 (غربي او سعودي او اردني) من محطة السيطرة الرئيسية للمشروع الى محطة الدفع مع كل ما يتطلبه العمل من اعمال حفريات ودفن واعادة الشوارع الى ما كانت عليه قبل العمل وحسب توجيهات المهندس المشرف","م.ط",400,150000,{"$f":"E42*D42","v":60000000}]
[null,"ج - محطة الفلاتر"]
[1,"القيام بتجهيز  لوحة اسيطرة رئيسية وتشمل قاطع دورة رئيسي نوع (موتورايز) وحسب السعة التي تحددها لجنة الاشراف مع تجهيز وتركيب قواطع دورة ذو حمايات مدمجة لكل فلتر وقاطع خاص بالانارة والخدمات ويكون داخل بورد حديدي مصنوع ممن البليت سمك (2) ملم مع الصبغ الحراري مع تجهيز مقاييس (فولتية مع امبير مع هيرتز)  لكل قاطع وتكون التوصيلات الداخلية بازبار ويحتوي على قاطع دوره نوع (RCCD) شاملا السعر مد وربط قابلو (يتم تحديد حجمه من قبل لجنة الاشراف يربط بين القاطع الرئيسي الى القواطع الفرعية وكذلك القابلو الرئيسي الذي يغذي قاطع الموتورايز ويكون البورد الكهربائي مكيف (تبريد) سبلت كنتوري(4) طن مع كل ما يتطلبه العمل وحسب توجيهات المهندس المشرف .\n","جملة","جملة ",20000000,20000000]
[null,"د - محطة الكيمياويات"]
[1,"لقيام بتجهيز  لوحة اسيطرة رئيسية وتشمل قاطع دورة رئيسي نوع (موتورايز) وحسب السعة التي تحددها لجنة الاشراف مع تجهيز وتركيب قواطع دورة ذو حمايات مدمجة لكل جهاز وقاطع خاص بالانارة والخدمات ويكون داخل بورد حديدي مصنوع ممن البليت سمك (2) ملم مع الصبغ الحراري مع تجهيز مقاييس (فولتية مع امبير مع هيرتز)  لكل قاطع ويحتوي على قاطع دوره نوع (RCCD) وتكون التوصيلات الداخلية بازبار شاملا السعر مد وربط قابلو (يتم تحديد حجمه من قبل لجنة الاشراف يربط بين القاطع الرئيسي الى القواطع الفرعية وكذلك القابلو الرئيسي الذي يغذي قاطع الموتورايز ويكون البورد الكهربائي مكيف (تبريد) سبلت كنتوري(4) طن مع كل ما يتطلبه العمل وحسب توجيهات المهندس المشرف .\n","جملة","جملة ",15000000,15000000]
[null,"ه - محطة الاطيان"]
[1,"القيام بتجهيز  لوحة اسيطرة رئيسية وتشمل قاطع دورة رئيسي نوع (موتورايز) وحسب السعة التي تحددها لجنة الاشراف مع تجهيز وتركيب قواطع دورة ذو حمايات مدمجة لكل مضخة وقاطع خاص بالانارة والخدمات ويكون داخل بورد حديدي مصنوع ممن البليت سمك (2) ملم مع الصبغ الحراري مع تجهيز مقاييس (فولتية مع امبير مع هيرتز)  لكل قاطع وتكون التوصيلات الداخلية بازبار ويحتوي على قاطع دوره نوع (RCCD) شاملا السعر مد وربط قابلو (يتم تحديد حجمه من قبل لجنة الاشراف يربط بين القاطع الرئيسي الى القواطع الفرعية وكذلك القابلو الرئيسي الذي يغذي قاطع الموتورايز ويكون البورد الكهربائي مكيف (تبريد) سبلت كنتوري(4) طن مع كل ما يتطلبه العمل وحسب توجيهات المهندس المشرف .\n","جملة","جملة ",5000000,5000000]
[null,"و - محطة الغسيل"]
[1,"القيام بتجهيز  لوحة اسيطرة رئيسية وتشمل قاطع دورة رئيسي نوع (موتورايز) وحسب السعة التي تحددها لجنة الاشراف مع تجهيز وتركيب قواطع دورة ذو حمايات مدمجة لكل مضخة وقاطع خاص بالانارة والخدمات ويكون داخل بورد حديدي مصنوع ممن البليت سمك (2) ملم مع الصبغ الحراري مع تجهيز مقاييس (فولتية مع امبير مع هيرتز)  لكل قاطع وتكون التوصيلات الداخلية بازبار ويحتوي على قاطع دوره نوع (RCCD) شاملا السعر مد وربط قابلو (يتم تحديد حجمه من قبل لجنة الاشراف يربط بين القاطع الرئيسي الى القواطع الفرعية وكذلك القابلو الرئيسي الذي يغذي قاطع الموتورايز ويكون البورد الكهربائي مكيف (تبريد) سبلت كنتوري(4) طن مع كل ما يتطلبه العمل وحسب توجيهات المهندس المشرف .\n","جملة","جملة ",15000000,15000000]
[null,"ز - محطة المحولات"]
[1,"تجهيز ونصب وفحص وتشغيل محولة كهربائية سعة (4) ميكا فولت امبير نوع (كيوسك) مع كافة متطالبات العمل من توصيل ونصب قابلوات مع الجنج اوفر (اوتوماتيك) على ان تكون ذات منشا غربي وحسب المواصفات العراقية)D26          H.V:11000V\nFrequency: 50 Hz, 3Ph\nDYN 11 , L.V: 416 t240V\n","عدد",2,125000000,{"$f":"E52*D52","v":250000000}]
[2,"تجهيز مواد ومعدات والقيام بتجهيز قاطع دورة رئيسي (نوع موتورايز) حجم (5000) امبير عدد/2 مع قواطع فرعية لمناطق (السحب والدفع والكيمياويات والفلاتر والاطيان ودور المشغلين والغسيل ) نوع موتورايز  وتكون مربوطة بقاطع دورة نوع (RCCD) (قياس التيار الفرقي) ويتم تحديد السعات من قبل لجنة الاشراف وحسب الحاجة الفعلية على ان تكون داخل لوحة سيطرة وتكون التوصيلات الداخلية (بازبار) مع كافة المقاييس المطلوبة اضاقة الى قاطع دورة لكل من الخدمات والانارة مع كل ما يتطلبه العمل وحسب توجيهات المهندس المشرف","جملة","جملة ",60000000,60000000]
[null,"المجموع / ",null,null,null,{"$f":"SUM(F38:F53)","v":590000000}]
[null,"خامسا : اعمال الفلاتر"]
[1," اتجهيز المواد والمعدات اللازمة لازالة كافة طبقات الحصى والرمل عن الفلاتر ونقلها الى مكان يختاره المهندس المقيم وتنظيف الفلتر واصلاح التسربات مع تجهيز انابيب جديدة ووضعها في مكانها المخصص مع تجهيز ووضع طبقات الحصى والرمل الناجح بالفحص المختبري الى مستوياته الاصلية وبكافة تدرجاته بحيث يكون اداء الفلتر بصورة جيدة والماء المنتج مطابق للمواصفات الفنية  شاملا السعر تنضيف جدران الفلاتر مع صبغها بطبقتين من الايبوكسي الاساس وثلاث طبقات من الايبوكسي الغذائي مع معالجة كافة الاضرار ان وجدت وحسب توجيهات المهندس المشرف.","عدد",16,20000000,{"$f":"E56*D56","v":320000000}]
[2,"تجهيز وربط ونصب وفحص مضخات الغسيل                    (640م3/سا ×10م) ع المحرك الكهربائي  مع ستارتر جديد ويتظمن   ( قاطع دورة وكونتاكتر واوفرلود وتايمر وكيج اضوية ومصابيح واسلاك وكيبلات )وتكون لوحات السيطرة الرئيسية ذات نمط تشغيل (سوفت ستار) مع تجهيز المحركات الكهربائية بحساسات حرارية (متحسس حراري) وميكانيكا  يحتوي على قاطع دوره نوع (RCCD) مع تجهيز قابلو (يتم تحديد حجمه حسب الكيلوواطية للمضخة من المضخة الى الستارتر ومن الستارتر الى لوحة السيطرة الرئيسية مع كل ما يتطلبه العمل على ان تكون جميع التسليكات الداخلية للبورد الكهربائي بواسطة بازبارات نحاسية وحسب توجيهات المهندس المشرف مع تجهيز مواد احتياطية للمضخة تشم ( بولبرنات مع شفت مع بشارة مع اطواق ) وعلى ان تكون جميع المواد المجهزه غربية المنشا وجديدة","عدد",3,20000000,{"$f":"E57*D57","v":60000000}]
[3,"تجهيز المواد والمعدات اللازمة والقيام بفتح جميع الاقفال الكهربائية الخاصة بالفلاتر والقيام بتجهيز وربط وتشغيل وتسليك اقفال جديدة  عدد (5) لكل فلتر والبالغ عددها (16) فلترمع كل ما يتطلبة العمل وتوجيهات المهندس المشرف  ","عدد",80,5000000,{"$f":"E58*D58","v":400000000}]
[4,"تبديل كافة اجزاء البورد الرئيسي الخاص بمنطقة الفلاتر  مع كافة الكيبلات الكهربائية والتوصيلات الى الفلاتر مع كل ما يتطلبه العمل","جملة","جملة ",5000000,5000000]
[5,"تجهيز المواد والمعدات اللازمة لتبديل مجموعة صمامات محطة الغسيل وكل مجموعة تضم  ( صمامات من جهة السحب والدفع  وعدم رجوع لكل مضخة ) مع كل ما هو مطلوب لضمان الاداء الجيد وبدون تسريب ويجب صبغ كل الصمامات باستخدام طلاء اوكسيد احمر وبعده صبغ زيتي لماع ذو نوعية جيدة وحسب توجيهات المهندس المشرف","عدد",3,4000000,{"$f":"E60*D60","v":12000000}]
[6,"تبديل كافة لوحات السيطرة الخاصة بكل فلتر مع ما يتطلبه العمل من توصيلات كهربائية مع البورد الرئيسي العائد للفلاتر.","عدد",16,2000000,{"$f":"E61*D61","v":32000000}]
[7,"تجهيز المواد والمعدات اللازمة لتبديل كافة بوابات الدخول والخروج من الفلتر مع الشفت والبوشة وانابيب التي تربطها مع قفل التحكم بها مع كل ما يتطلبه العمل لضمان الاداء الجيد للفلتر وحسب توجيهات ىالمهندس المقيم.","جملة","جملة ",20000000,20000000]
[8,"تجهيز المواد والقيام بعمل  اغطية للمنهولات ذات قياس (1.5×1.5)متر باستخدام الجكر بليت سمك 6ملم مع كل ما يتطلبة العمل وتوجيهات المهندس المشرف .","عدد",16,500000,{"$f":"E63*D63","v":8000000}]
[9,"تجهيز المواد والمعدات اللازمة لتعديل الموقع القائم  لصمامات منافذ الفلاتر على موقع اخر ( يحدد قرب الجدران الداخلية لغرفة الفلاتر ) بحيث يكون الدوار العمودي( الذي يربط المحرك الكهربائي بالصمام ) بوضع عامودي تماما بدل الوضع المائل  .","عدد",16,1000000,{"$f":"E64*D64","v":16000000}]
[null,"المجموع / ",null,null,null,{"$f":"SUM(F56:F64)","v":873000000}]
[null,"سادسا: اعمال احواض الترسيب"]
[1,"جهيز مواد ومعدات والقيام بصيانة وتصليح وتبديل الأجزاء المتضررة في احواض الترسيب وكما يلي :-\nتجهيز وربط اطارات جديدة نوعية جيدة لكاسحة الاطيان","عدد",6,300000,{"$f":"E67*D67","v":1800000}]
[2,"تجهيز وربط البليت الدائري للحوض(السكاكين) ستانلس ستيل سمك  (3 ملم) وعرض(30 سم )","م.ط",1200,10000,12000000]
[3,"صيانة وتنظيف احواض الترسيب من الاطيان","عدد",3,2000000,6000000]
[4,"تجهيز وربط وتشغيل محرك كاسحة (3 KW  )(6.5 A ) ( 1500 دورة/د )","عدد",3,250000,750000]
[5," تجهيز وربط  وتشغيل محرك كاسحة (2 KW  )(4.8 A ) ( 1000 دورة/د )","عدد",3,200000,600000]
[6," تجهيز وربط وتشغيل محرك كاسحة (1.5 KW  ) (3.7 A ) ( 1500 دورة/د)","عدد",3,150000,450000]
[7,"تجهيز وربط ونصب وفحص مضخات بناية الاطيان (240م3/سا ×7م) مع المحرك الكهربائي  مع ستارتر جديد( ) ويتظمن  ( قاطع دورة وكونتاكتر واوفرلود وتايمر وكيج اضوية ومصابيح واسلاك وكيبلات ) تكون لوحات السيطرة الرئيسية ذات نمط تشغيل (سوفت ستار) مع تجهيز المحركات الكهربائية بحساسات حرارية (متحسس حراري) وميكانيكا مع كل ما يتطلبه العمل من وحسب توجيهات المهندس المشرف مع تجهيز مواد احتياطية للمضخة تشمل ( بولبرنات مع شفت مع بشارة مع اطواق ) وعلى ان تكون جميع المواد ألمجهزه غربية المنشأ وجديدة \n","عدد",2,10000000,20000000]
[8,"تجهيز المواد والمعدات اللازمة والقيام بإدامة السكريبر لأحواض الترسيب ويشمل العمل قلع كافة الأجزاء الحديدية (الربوطات ) والمماشي واستبدالها  بأجزاء جديدة مع القيام بتقوية المساند الحديدية . ويشمل العمل   وكاسحات الأطيان وجميع الخلاطات الموجودة مع كافة التسليكات الكهربائية  بأجزاء جديدة من مناشئ رصينة . والقيام بطلاء أجزاء السكريبر بمادة الايبوكسي الغذائي مع كل ما يتطلبة العمل وتوجيهات المهندس المشرف ","عدد",3,1000000,3000000]
[9,"تجهيز المواد والمعدات اللازمة والقيام بتبديل كافة التاسيسات (الانابيب +الاقفال والعكوس) العائدة لمنطقة خروج الماء من احواض الترسيب (منطقة الاطيان) مع كل ما يتطلبه العمل","جملة","جملة ",6000000,6000000]
[10,"تبديل البورد الرئيسي الخاص باحواض الترسيب (كاسحات الاطيان) مع كافة الكيبلات الكهربائية مع كل ما يتطلبه العمل","جملة","جملة ",2000000,2000000]
[11,"تجهيز ونصب وربط وفحص خلاط الشب محرك (4 KW )     (9 )A (1500 دورة/ دقيقة )  المزج السريع مع كل ما يتطلبه العمل وحسب توجيهات المهندس المشرف .","عدد",2,3000000,{"$f":"E77*D77","v":6000000}]
[null,"المجموع / ",null,null,null,{"$f":"SUM(F67:F77)","v":58600000}]
[null,"سابعا: اعمال الكيمياويات"]
[1,"تجهيز وربط ونصب وفحص جهاز كلور (20 كغم / سا ) غربي المنشا وجديد مع المخفف مع الهيتر مع كافة التراكيب والمواد اللازمة  للجهاز مع تبديل كافة الأنابيب والتاسيسات القديمة باخرى جديدة وربطها في المناطق المخصصة لها من منطقة الكلور والى حوض الترسيب ( مسافة 300 م.ط ) ومنطقة الدفع مع التاسيسات الكهربائية اللازمة لتشغيل اجهزة الكلورمع كل ما يتطلبه العمل لظمان الأداء الجيد للجهاز  وحسب توجيهات المهندس المشرف","عدد",4,15000000,{"$f":"E80*D80","v":60000000}]
[2,"تجهيز ونصب وربط وفحص بوستر يسعة (5 م3/س×110 م) مع كافة الملحقات والتوصيلات اللازمة وحسب توجيهات المهندس المشرف .","عدد",3,4000000,{"$f":"E81*D81","v":12000000}]
[3,"تجهيز وربط ونصب وفحص جهاز زرق الشب  (1000 لتر / سا )  غربي المنشا وجديد مع مع كافة التراكيب والمواد اللازمة  للجهاز مع تبديل كافة الانابيب والتاسيسات القديمة باخرى جديدة وربطها في المناطق المخصصة لها من منطقة الشب والى المزج السريع ( مسافة 200 م.ط ) مع كل ما يتطلبه العمل لظمان الاداء الجيد للجهاز  وحسب توجيهات المهندس المشرف ","عدد",6,7500000,{"$f":"E82*D82","v":45000000}]
[4,"تجهيز ونصب وربط وفحص خلاط الشب المزج البطئ محرك (3 KW )  مع الكير بوكس مع تبديل كافة الاجزاء المتضررة والاسلاك والذراع الرئيسي الحديدي وتنفيذ كافة الاعمال الاصلاحية لقاعدة الخلاط ويشمل ذلك اللحيم والقطع اضافة الى كل التاسيسات الكهربائية لكل جزء وحسب توجيهات المهندس المشرف .","عدد",3,1500000,{"$f":"E83*D83","v":4500000}]
[5,"تجهيز المواد والمعدات والقيام بعمل حوض تغطيس لاسطوانات الكلور مع ما يتطلبه العمل من غواطس وتصريف للماء وعمل مرشة للحوض  وحسب المخططات المعتمدة لدى المديرية العامة للماء مع تجهيز كرين وحسب توجيهات المهندس المشرف","جملة","جملة ",40000000,40000000]
[6,"صيانة وتنظيف  وتصليح  حوض خلط الشب (48) م3 وطلائه بطلاء مقاوم للصدأ من الداخل وبصبغ عادي من الخارج مع تجهيز الحوض بصناديق مسحوق الشب ويجب ان تكون جديدة وذات نوعية جيدة ( خشبية أو حديد مقاوم للصدأ ) تنصب داخل الحوض وبابعاد (4×1×1.5) م وابدال كافة التاسيسات مع كل ما يتطلبه العمل على ان تكون الجدران مصبوغة بمادة الايبوكسي الاساس بطبقتين ومن ثم الايبوكسي الغذائي ثلاث طبقات.  ","عدد",3,5000000,{"$f":"E85*D85","v":15000000}]
[null,"المجموع / ",null,null,null,{"$f":"SUM(F80:F85)","v":176500000}]
[null,"ثامنا/ المولدات"]
[1,"تجهيز ونصب وفحص وتشغيل مولدة جديدة (2000 كي في أي ) منشا غربي . مع عمل قاعدة كونكريتية مسلحة وحسب الابعاد للمولدة المجهزة والقيام بتجهيز ونصب جنج اوفر سويج مع كل مولدة منشا غربي مع تجهيز ومد كيبل مسلح (PVC) قياس (4(3×240+120))ملم2 وحسب الاطوال في موقع العمل مع القيام بتجهيز وتركيب خزان وقود سعة 30 م3 . لكل مولد وحسب المواصفات الفنية وتوجيهات المهندس المشرف .","عدد",2,360000000,{"$f":"E88*D88","v":720000000}]
[null,"المجموع / ",null,null,null,{"$f":"SUM(F88)","v":720000000}]
[null,"تاسعا/ الاعمال المدنية"]
["أ","محطة السحب الواطئ"]
[1,"تجهيز المواد والمعدات والقيام بقلع كافة (البياض + اللبخ الخارجي) واعادة العمل بها من جديد مع رفع كافة الانقاض خارج حدود البلدية مع ما يتطلبه العمل وحسب المواصفات الفنية وتوجيه دائرة المهندس المقيم.","م2",1200,15000,{"$f":"E92*D92","v":18000000}]
[2,"تجهيز المواد والقيام بتبديل السيراميك لجدران الغرفة لمحطة  السحب وحسب توجيهات المهندس المشرف","م2",500,20000,10000000]
[3,"تجهيز المواد والمعدات والقيام بتركيب زجاج جديد للنوافذ ومن النوع البلاستيكي . ويشمل العمل قلع الزجاج القديم واعادة تركيب الزجاج الجديد وباستخدام المعجون . ويشمل العمل طلاء الشبابيك باستخدام الصبغ الدهني ثلاث قوط  مع عمل كتائب خارجية لكل شباك وحسب توجيهات المهندس المشرف.","م2",100,50000,5000000]
[4,"تجهيز المواد والمعدات الخاصة والقيام بصيانة الدرج الخاص بغرفة المضخات ويشمل العمل تبديل قطع الدرجات وباستخدام قطع الكاشي الموزاييك . مع كل ما يتطلبة العمل . وحسب توجيهات المهندس المشرف.","م.ط",8,25000,200000]
[5,"تجهيز المواد والمعدات الخاصة والقيام بقلع المحجر الحديدي القديم وستبدالة بمحجر جديد وبستخدام انبوب حديد مغلون (40 ) ملم وبارتفاع 1 متر مع طلائة بطلاء دهني ثلاث قوط .","م.ط",60,15000,900000]
[6,"تجهيز المواد والمعدات الخاصة والقيام بتجهيز وتركيب مفرغات الهواء قياس (50×50) سم ويشمل العمل اعادة تسليك كافة الاسلاك الكهربائية اللازمة لتشغيل المفرغات . وحسب توجيهات المهندس المشرف .","عدد",5,60000,300000]
[7,"تجهيز المواد والمعدات الخاصة والقيام بتجهيز وتركيب باب خشب صاج قياس (2×1) متر كبس وجهين نوعية جيدة مع الاطار الخاص به . ويشمل العمل تجهيز وتركيب كيلون نوعية جيدة . مع كل ما يتطلبة العمل وتوجيهات المهندس المشرف.\nتجهيز المواد والمعدات الخاصة والقيام بتجهيز وتركيب باب  حديد قياس (2.4×2.3) متر كبس وجهين نوعية جيدة مع الاطار الخاص به مع الطلاء ثلاث قوط باستخدام الصبغ الدهني  . ويشمل العمل تجهيز وتركيب كيلون نوعية جيدة . مع كل ما يتطلبة العمل وتوجيهات المهندس المشرف.\n","عدد",2,400000,800000]
[8,"تبديل كافة التاسيسات الكهربائية والانارة لغرفة لمحطة السحب","جملة","جملة ",1000000,1000000]
[9,"القيام بقلع واستبدال الكاشي الموزائيك القديم باخر جديد .وباللون الذي يحدده المهندس المشرف مع كل ما يتطلبه العمل وحسب المواصفات الفنية.","م2",500,20000,{"$f":"E100*D100","v":10000000}]
[null,"المجموع / ",null,null,null,{"$f":"SUM(F92:F100)","v":46200000}]
["ب","محطة الاطيان"]
[1,"تجهيز المواد والمعدات والقيام بقلع كافة (البياض + اللبخ الخارجي) واعادة العمل بها من جديد مع رفع كافة الانقاض خارج حدود البلدية مع ما يتطلبه العمل وحسب المواصفات الفنية وتوجيه دائرة المهندس المقيم.","م2",100,15000,{"$f":"E103*D103","v":1500000}]
[2,"تجهيز المواد والمعدات والقيام بتركيب زجاج جديد للنوافذ ومن النوع البلاستيكي . ويشمل العمل قلع الزجاج القديم واعادة تركيب الزجاج الجديد وباستخدام المعجون . ويشمل العمل طلاء الشبابيك باستخدام الصبغ الدهني ثلاث قوط  مع عمل كتائب خارجية لكل شباك وحسب توجيهات المهندس المشرف.","م2",12,10000,{"$f":"E104*D104","v":120000}]
[null,"المجموع / ",null,null,null,{"$f":"SUM(F103:F104)","v":1620000}]
["ج","محطة الشب"]
[1,"تجهيز المواد والمعدات والقيام بقلع كافة (البياض للسقوف  + اللبخ الخارجي)   واعادة العمل بها من جديد مع رفع كافة الانقاض خارج حدود البلدية مع ما يتطلبه العمل وحسب المواصفات الفنية وتوجيه دائرة المهندس المقيم.","م2",150,15000,{"$f":"E107*D107","v":2250000}]
[2,"تجهيز المواد والقيام بقلع السيراميك للجدران والارضية وستبداله بسيراميك حامضي جديد نوعية جيدة ( اسباني ) ويشمل العمل رفع كافة الانقاض وطرحها خارج المشروع وحسب توجيهات المهندس المشرف .","م2",350,20000,7000000]
[3,"تجهيز المواد والمعدات الخاصة والقيام بتجهيز وتركيب مفرغات الهواء قياس (50×50) سم ويشمل العمل كافة اعادة تسليك كافة الاسلاك الكهربائية اللازمة لتشغيل المفرغات . وحسب توجيهات المهندس المشرف .","عدد",3,60000,180000]
[4,"تجهيز المواد والقيام بتجهيز باب حديد سلايد وباستخدام حديد بليت سمك 4 ملم في تغليف الباب من الوجهين  قياس (4×6) متر مع عمل سكة حديدية لتثبيت الباب باستخدام حديد الشيلمان والتثبيت بصورة جيدة وختيار بولبرنات خاصة نوعية جيدة من مناشئ اصلية .لحركة الباب . مع تثبيت الكيلون الخاص به وطلائه بثلاث قوط من الصبغ الدهني . وحسب توجيهات المهندس المشرف","عدد",1,1500000,1500000]
[5,"تجهيز المواد والمعدات الخاصة والقيام بتجهيز وتركيب باب  حديد قياس (2.4×2.3) متر كبس وجهين نوعية جيدة مع الاطار الخاص به مع الطلاء ثلاث قوط باستخدام الصبغ الدهني  . ويشمل العمل تجهيز وتركيب كيلون نوعية جيدة . مع كل ما يتطلبة العمل وتوجيهات المهندس المشرف.","عدد",2,350000,700000]
[6,"تجهيز المواد والقيام بتركيب بلاجكتور (400) واط زئبقي نوعية جيدة مع كافة التوصيلات الكهربائية وحسب توجيهات المهندس المشرف.","عدد",8,50000,400000]
[7,"تجهيز المواد والمعدات والقيام بتركيب زجاج جديد للنوافذ ومن النوع البلاستيكي . ويشمل العمل قلع الزجاج القديم واعادة تركيب الزجاج الجديد وباستخدام المعجون . ويشمل العمل طلاء الشبابيك باستخدام الصبغ الدهني ثلاث قوط  مع عمل كتائب خارجية لكل شباك وحسب توجيهات المهندس المشرف.\n","جملة","جملة ",2000000,2000000]
[null,"المجموع / ",null,null,null,{"$f":"SUM(F107:F113)","v":14030000}]
["د","احواض الترسيب"]
[1,"تجهيز المواد والمعدات اللازمة للقيام بدفن وتسوية المناطق المتعرضة الى الهطول حول احواض الترسيب . باستخدام السبيس الناجح في الفحص المختبري وبنسبة رص لاتقل عن (95%) وعل شكل طبقات مع الحدل وحسب توجيهات المهندس المشرف .","جملة","جملة ",2000000,2000000]
[2,"تجهيز المواد والمعدات اللازمة لتنظيف احواض الترسيب من الداخل واصلاح الاجزاء المتضررة وطلاء الاجزاء المعدنية في الحوض بمادة الايبوكسي الغذائي مع كل ما يتطلبة العمل وتوجيهات المهندس المشرف .","عدد",3,2000000,{"$f":"E117*D117","v":6000000}]
[3,"تجهيز المواد والقيام بعمل ممشى من الكونكريت بعرض 1 متر وسمك 30 سم حول احواض الترسيب  . ويشمل العمل كذلك عمل ممشى من الكونكريت المسلح بين احواض الترسيب بعرض (ا)متر وسمك 30 سم بعد عملية تسوية وحدل مكان المماشي بالسبيس وحسب توجيهات المهندس المشرف.","م3",110,250000,{"$f":"E118*D118","v":27500000}]
[null,"المجموع / ",null,null,null,{"$f":"SUM(F116:F118)","v":35500000}]
["ه","منطقة الفلاتر + الغسيل"]
[1,"تجهيز المواد والمعدات والقيام بقلع كافة (البياض + اللبخ الخارجي) واعادة العمل بها من جديد مع رفع كافة الانقاض خارج حدود البلدية مع ما يتطلبه العمل وحسب المواصفات الفنية وتوجيه دائرة المهندس المقيم.","م2",1600,15000,{"$f":"E121*D121","v":24000000}]
[2,"تجهيز المواد والمعدات والقيام بتركيب زجاج جديد للنوافذ ومن النوع البلاستيكي . ويشمل العمل قلع الزجاج القديم واعادة تركيب الزجاج الجديد وباستخدام المعجون . ويشمل العمل طلاء الشبابيك باستخدام الصبغ الدهني ثلاث قوط  مع عمل كتائب خارجية لكل شباك وحسب توجيهات المهندس المشرف.","م2",120,10000,1200000]
[3,"تجهيز المواد والمعدات الخاصة والقيام بتجهيز وتركيب باب خشب صاج قياس (2.5×2) متر كبس وجهين نوعية جيدة مع الاطار الخاص به . ويشمل العمل تجهيز وتركيب كيلون نوعية جيدة . مع كل ما يتطلبة العمل وتوجيهات المهندس المشرف.","عدد",1,500000,500000]
[4,"تجهيز المواد والمعدات الخاصة والقيام بتجهيز وتركيب باب خشب صاج قياس (2×1) متر كبس وجهين نوعية جيدة مع الاطار الخاص به . ويشمل العمل تجهيز وتركيب كيلون نوعية جيدة . مع كل ما يتطلبة العمل وتوجيهات المهندس المشرف.","عدد",5,400000,2000000]
[5,"تجهيز المواد والمعدات الخاصة والقيام بتاهيل الممشى  الحديدي  والمحجر الحديدي الحاص بة  مع القيام بطلاء الاجزاء ثلاث قوط باستخدام الصبغ الدهني . وحسب توجيهات المهندس المشرف .","م.ط",40,15000,600000]
[6,"تجهيز المواد والقيام بقلع الكاشي القديم للارضيات وستبداله بكاشي  جديد نوعية جيدة ويشمل العمل رفع كافة الانقاض وطرحها خارج المشروع وحسب توجيهات المهندس المشرف .","م2",200,20000,4000000]
[null,"المجموع / ",null,null,null,{"$f":"SUM(F121:F126)","v":32300000}]
["و","منطقة الكلور"]
[1,"تجهيز المواد والقيام بقلع السيراميك للجدران والارضية وستبداله بسيراميك حامضي جديد نوعية جيدة ( اسباني ) ويشمل العمل رفع كافة الانقاض وطرحها خارج المشروع وحسب توجيهات المهندس المشرف .","م2",350,20000,{"$f":"E129*D129","v":7000000}]
[2,"تجهيز المواد والمعدات الخاصة والقيام بتجهيز وتركيب مفرغات الهواء قياس (50×50) سم ويشمل العمل كافة اعادة تسليك كافة الاسلاك الكهربائية اللازمة لتشغيل المفرغات . وحسب توجيهات المهندس المشرف .","عدد",4,60000,{"$f":"E130*D130","v":240000}]
[3,"تجهيز المواد والمعدات الخاصة والقيام بتجهيز وتركيب باب  حديد قياس (2.4×2.3) متر كبس وجهين نوعية جيدة مع الاطار الخاص به مع الطلاء ثلاث قوط باستخدام الصبغ الدهني  . ويشمل العمل تجهيز وتركيب كيلون نوعية جيدة . مع كل ما يتطلبة العمل وتوجيهات المهندس المشرف.","عدد",2,400000,{"$f":"E131*D131","v":800000}]
[4,"تجهيز المواد والقيام بتجهيز باب حديد سلايد وباستخدام حديد بليت سمك 4 ملم في تغليف الباب من الوجهين  قياس (4×6) متر مع عمل سكة حديدية لتثبيت الباب باستخدام حديد الشيلمان والتثبيت بصورة جيدة وختيار بولبرنات خاصة نوعية جيدة من مناشئ اصلية .لحركة الباب . مع تثبيت الكيلون الخاص به وطلائه بثلاث قوط من الصبغ الدهني . وحسب توجيهات المهندس المشرف","عدد",1,1500000,{"$f":"E132*D132","v":1500000}]
[5,"تجهيز المواد والمعدات والقيام بعمل مرشة (دوش) الخاصة بمنطقة تسرب الكلور ويشمل العمل كافة التاسيسات والربوطات من مصدر الماء مع كل ما يتطلبه العمل وحسب توجيهات المهندس المشرف","جملة","جملة ",2000000,2000000]
[6,"تجهيز المواد والمعدات والقيام بعمل حوض تغطيس لاسطوانات الكلور مع ما يتطلبه العمل من غواطس وتصريف للماء وعمل مرشة للحوض مع تجهيز كرين ويكون مرتبط بمناطق (حوض التغطيس + غرفة الكلور +السقيفة)  وحسب توجيهات المهندس المشرف","جملة","جملة ",40000000,40000000]
[7,"تجهيز المواد والمعدات اللازمة والقيام بعمل سقيفة لاسطوانات الكلور (10×8) م ويشمل العمل الحفر ومن ثم صب ارضية وحسب المواصفات الفنية المعتمدة وتوجيهات المهندس المشرف مع كل ما يتطلبه العمل","جملة","جملة ",10000000,10000000]
[8,"تجهيز المواد والمعدات والقيام بتركيب زجاج جديد للنوافذ ومن النوع البلاستيكي . ويشمل العمل قلع الزجاج القديم واعادة تركيب الزجاج الجديد وباستخدام المعجون . ويشمل العمل طلاء الشبابيك باستخدام الصبغ الدهني ثلاث قوط  مع عمل كتائب خارجية لكل شباك وحسب توجيهات المهندس المشرف.","م2",80,10000,{"$f":"E136*D136","v":800000}]
[null,"المجموع / ",null,null,null,{"$f":"SUM(F129:F136)","v":62340000}]
["ز","خزان التجميع ( الخزان لارضي) "]
[1,"تجهيز مواد والمعدات اللازمة والقيام بتنظيف الخزان الأرضي من الأطيان والأوساخ العالقة به  مع كل ما يتطلبه العمل .","جملة","جملة ",1000000,1000000]
[2,"تجهيز المواد والمعدات والقيام بتبديل فتحات التهوية مع ما يتطلبه العمل","جملة","جملة ",1000000,1000000]
[null,"المجموع / ",null,null,null,{"$f":"SUM(F139:F140)","v":2000000}]
["ح","محطة الدفع"]
[1,"تجهيز المواد والمعدات والقيام بقلع كافة (البياض + اللبخ الخارجي) واعادة العمل بها من جديد مع رفع كافة الانقاض خارج حدود البلدية مع ما يتطلبه العمل وحسب المواصفات الفنية وتوجيه دائرة المهندس المقيم.","م2",1100,15000,{"$f":"E143*D143","v":16500000}]
[2,"تجهيز المواد والقيام بقلع  السيراميك القديم للجدران الغرفة واستبداله باخر جديد مع نقل  الانقاض خارج حدود البلدية وحسب توجيهات المهندس المشرف","م2",100,20000,2000000]
[3,"تجهيز المواد والمعدات والقيام بتركيب زجاج جديد للنوافذ ومن النوع البلاستيكي . ويشمل العمل قلع الزجاج القديم واعادة تركيب الزجاج الجديد وباستخدام المعجون . ويشمل العمل طلاء الشبابيك باستخدام الصبغ الدهني ثلاث قوط  مع عمل كتائب خارجية لكل شباك وحسب توجيهات المهندس المشرف.","م2",100,10000,1000000]
[4,"تجهيز المواد والمعدات الخاصة والقيام بصيانة الدرج الخاص بغرفة المضخات ويشمل العمل تبديل قطع الدرجات وباستخدام قطع الكاشي الموزاييك . مع كل ما يتطلبة العمل . وحسب توجيهات المهندس المشرف.","م.ط",22,15000,330000]
[5,"تجهيز المواد والمعدات الخاصة والقيام بقلع المحجر الحديدي القديم وستبدالة بمحجر جديد وبستخدام انبوب حديد مغلون (40 ) ملم وبارتفاع 1 متر مع طلائة بطلاء دهني ثلاث قوط .","م.ط",120,15000,1800000]
[6,"تجهيز المواد والمعدات الخاصة والقيام بتجهيز وتركيب مفرغات الهواء قياس (50×50) سم ويشمل العمل اعادة تسليك كافة الاسلاك الكهربائية اللازمة لتشغيل المفرغات . وحسب توجيهات المهندس المشرف .","عدد",5,60000,300000]
[7,"تجهيز المواد والمعدات الخاصة والقيام بتجهيز وتركيب باب خشب صاج قياس (2×1) متر كبس وجهين نوعية جيدة مع الاطار الخاص به . ويشمل العمل تجهيز وتركيب كيلون نوعية جيدة . مع كل ما يتطلبة العمل وتوجيهات المهندس المشرف.","عدد",2,300000,600000]
[8,"تجهيز المواد والمعدات الخاصة والقيام بتجهيز وتركيب باب  حديد قياس (2.4×2.3) متر كبس وجهين نوعية جيدة مع الاطار الخاص به مع الطلاء ثلاث قوط باستخدام الصبغ الدهني  . ويشمل العمل تجهيز وتركيب كيلون نوعية جيدة . مع كل ما يتطلبة العمل وتوجيهات المهندس المشرف.","عدد",1,400000,400000]
[9,"القيام بقلع واستبدال الكاشي الموزائيك القديم باخر جديد.وباللون الذي يحدده المهندس المشرف مع كل ما يتطلبه العمل ","م2",1000,20000,20000000]
[null,"المجموع / ",null,null,null,{"$f":"SUM(F143:F151)","v":42930000}]
["ط","محطة المولدات والمحولات وغرف السيطرة المركزية(الضغط الواطئ + الضغط العالي )"]
[1,"تجهيز المواد والمعدات والقيام بقلع كافة (البياض + اللبخ الخارجي) واعادة العمل بها من جديد مع رفع كافة الانقاض خارج حدود البلدية مع ما يتطلبه العمل وحسب المواصفات الفنية وتوجيه دائرة المهندس المقيم.","م2",700,15000,{"$f":"E154*D154","v":10500000}]
[2,"تجهيز المواد والمعدات والقيام بتركيب زجاج جديد للنوافذ سمك (6) ملم . ويشمل العمل قلع الزجاج المتضرر واعادة تركيب الزجاج الجديد وباستخدام المعجون . ويشمل العمل طلاء الشبابيك باستخدام الصبغ الدهني ثلاث قوط  وحسب توجيهات المهندس المشرف.","م2",10,10000,{"$f":"E155*D155","v":100000}]
[3,"تبديل كافة التاسيسات الكهربائية والانارة لغرفة المولدات والمحولات وغرف السيطرة المركزية(الضغط الواطئ + الضغط العالي )","جملة","جملة ",2000000,2000000]
[null,"المجموع / ",null,null,null,{"$f":"SUM(F154:F156)","v":12600000}]
["ي","الشوارع الداخلية"]
[1,"تجهيز المواد والمعدات اللازمة والقيام باعادة صب الشوارع الداخلية للمشروع بعرض 6متر \nمك 15 سم بالكونكريت المسلح باستخدام شبكات التسليح (BRC) وبنسبة خلط 1:2:4 .باستخدام الاسمنت المقاوم للاملاح بسمك (20) سم مع فرش الارضية بطبقتين من ماة البولي امي (النايلون) مع عمل مفاصل تمدد لكل (5متر ) مع معالجتها بالفلين مع عمل كربستون مع المردات وانابيب تصريف المياه والسواقي والكليات المناسبة مع كل ما يتطلبة العمل وتوجيهات المهندس المشرف .\n","م3",500,250000,{"$f":"E159*D159","v":125000000}]
[2,"تجهيز ونصب وربط وتشغيل اعمدة انارة للشوارع الداخلية والمشروع  مختلفة الاطوال والاحجام والانواع (تحدد من قبل لجنة الاشراف ) مع تجهيز وربط خلية ضوئية لكل مجموعة عدد/5 مع كل ما يتطلبه العمل","عدد",40,500000,{"$f":"E160*D160","v":20000000}]
[null,"المجموع / ",null,null,null,{"$f":"SUM(F159:F160)","v":145000000}]
["ك","دور المشروع"]
[1,"تجهيز المواد والمعدات والقيام بقلع كافة (البياض + اللبخ الخارجي) واعادة العمل بها من جديد مع رفع كافة الانقاض خارج حدود البلدية مع ما يتطلبه العمل وحسب المواصفات الفنية وتوجيه دائرة المهندس المقيم.","م2",1360,15000,{"$f":"E163*D163","v":20400000}]
[2,"تجهيز المواد والمعدات والقيام بتركيب زجاج جديد للنوافذ ومن النوع البلاستيكي . ويشمل العمل قلع الزجاج القديم واعادة تركيب الزجاج الجديد وباستخدام المعجون . ويشمل العمل طلاء الشبابيك باستخدام الصبغ الدهني ثلاث قوط  مع عمل كتائب خارجية لكل شباك وحسب توجيهات المهندس المشرف..","م2",90,10000,900000]
[3,"تجهيز المواد والقيام بقلع السيراميك للجدران والارضية للحمامات وستبداله بسيراميك  جديد نوعية جيدة ( اسباني ) ويشمل العمل رفع كافة الانقاض وطرحها خارج المشروع وحسب توجيهات المهندس المشرف .","م2",312,20000,6240000]
[4,"تجهيز مواد ومعدات والقيام بقلع الابواب القديمة  ومن ثم تجهيز وتركيب باب خشب (صاج كبس وجهين) بابعاد (2×1) م مع الاطار والكيلون نوعية جيدة  ويشمل العمل تكسير واعادة الانهاءات حول الباب وحسب توجيهات المهندس المشرف .","عدد",28,400000,11200000]
[5,"تجهيز مواد ومعدات والقيام بقلع الابواب القديمة  ومن ثم تجهيز وتركيب باب خشب (صاج كبس وجهين) بابعاد (2×1.5)م مع الاطار والكيلون نوعية جيدة  ويشمل العمل تكسير واعادة الانهاءات حول الباب وحسب توجيهات المهندس المشرف ","عدد",4,450000,1800000]
[6,"تجهيز مواد ومعدات والقيام بتركيب خزان ماء مغلون بابعاد (1.25×1.25×1.25)م مع الخلاط ويشمل السعر كافة الملحقات المائية التي يتطلبها العمل .","عدد",5,250000,1250000]
[7,"تجهيز مواد ومعدات والقيام بتركيب سخان ماء سعة (120) لتر كهربائي نوعية جيدة ويشمل العمل كافة الملحقات والتاسيسات المائية والكهربائية التي يتطلبها العمل.","عدد",5,250000,1250000]
[8,"تجهيز مواد ومعدات والقيام بمد انبوب ماء مغلون قطر(2) انج لغرض ايصال الماء الى الدور ويشمل السعر كافة الملحقات المائية التي يتطلبها العمل .","م.ط",500,3000,1500000]
[9,"تجهيز مواد ومعدات والقيام بقلع الابواب القديمة  ومن ثم تجهيز وتركيب باب حديد  بابعاد (1×2)م مع الاطار والكيلون نوعية جيدة مع الصبغ ضد الصدا والصبغ الدهني ثلاث قوط ويشمل العمل التكسير واعادة الانهاءات حول الباب وحسب توجيهات المهندس المشرف .","عدد",5,250000,1250000]
[10,"تجهيز المواد والمعدات اللازمة والقيام ببناء سياج من مادة البلوك المصمد لدور المشروع بارتفاع 3 متر ويشمل العمل صب كونكريتي مسلح للاسس بمساحة (60×60)سم مع القيام بلبخ ونثر  الجدران من الداخل والخارج . مع كل ما يتطلبة العمل وحسب المواصفات الفنية وتوجيهات المهندس المشرف .  ","م.ط",150,50000,7500000]
[11,"تجهيز مواد ومعدات والقيام بقلع شتايكر الاسطح لكافة ابنية المشروع ومحطة تقوية الصينية  ورفع الانقاض خارج حدود البلدية وتطبيق شتايكر جديد بابعاد(80×80)سم ويشمل العمل فرش طبقة من الرمل النظيف وملئ الفواصل بالماستك وحسب المواصفات الفنية وتوجيهات المهندس المشرف","م2",2500,10000,25000000]
[12,"تبديل كافة التاسيسات الكهربائية والانارة لكافة ور المشروع","جملة","جملة ",7000000,7000000]
[null,"المجموع / ",null,null,null,{"$f":"SUM(F163:F174)","v":85290000}]
[null,"بناية المختير"]
[1,"تجهيز المواد والمعدات والقيام بقلع كافة (البياض + اللبخ الخارجي) واعادة العمل بها من جديد مع رفع كافة الانقاض خارج حدود البلدية مع ما يتطلبه العمل وحسب المواصفات الفنية وتوجيه دائرة المهندس المقيم.","م2",500,15000,{"$f":"E177*D177","v":7500000}]
[2,"تجهيز المواد والمعدات والقيام بتركيب زجاج جديد للنوافذ ومن النوع البلاستيكي . ويشمل العمل قلع الزجاج القديم واعادة تركيب الزجاج الجديد وباستخدام المعجون . ويشمل العمل طلاء الشبابيك باستخدام الصبغ الدهني ثلاث قوط  مع عمل كتائب خارجية لكل شباك وحسب توجيهات المهندس المشرف.","م2",100,10000,1000000]
[3,"تجهيز المواد والقيام بقلع السيراميك للجدران والارضية للحمامات وستبداله بسيراميك  جديد نوعية جيدة ( اسباني ) ويشمل العمل رفع كافة الانقاض وطرحها خارج المشروع وحسب توجيهات المهندس المشرف . ","م2",120,20000,2400000]
[4,"تجهيز مواد ومعدات والقيام بقلع الابواب القديمة  ومن ثم تجهيز وتركيب باب خشب (صاج كبس وجهين) بابعاد (2×1.5)م مع الاطار والكيلون نوعية جيدة  ويشمل العمل تكسير واعادة الانهاءات حول الباب وحسب توجيهات المهندس المشرف .","عدد",7,400000,2800000]
[5,"تجهيز مواد ومعدات والقيام بتركيب خزان ماء مغلون بابعاد (1.25×1.25×1.25)م ويشمل السعر كافة الملحقات المائية التي يتطلبها العمل .","عدد",4,250000,1000000]
[6,"تجهيز مواد ومعدات والقيام بتركيب سخان ماء سعة (120) لتر كهربائي نوعية جيدة ويشمل العمل كافة الملحقات والتاسيسات المائية والكهربائية التي يتطلبها العمل.","عدد",3,250000,750000]
[7,"تبديل كافة التاسيسات الكهربائية والانارة ","جملة","جملة ",2000000,2000000]
[8,"تجهيز المختبر بكافة المواد المختبرية اللازمة لفحص الماء (اجهزة فحص الكلور +فحص العكورة +جارتيست +فحص المعان+ فحص جار+ بيكرات  مختلفة الاحجام +سحاحة  مختلفة الاحجام +سخان + ميزان حساس ودقيق +ميزان عادي +اوراق ترشيح+ فرن+ماصة+ دورق+) مع كل ما يتطلبه العمل وحسب توجيهات لجنة الاشراف","جملة","جملة ",10000000,10000000]
[null,"المجموع / ",null,null,null,{"$f":"SUM(F177:F184)","v":27450000}]
[null,"منظومة انذار "]
[1,"تجهيز المواد والمعدات اللازمة والقيام بعمل منظومة انذار متكاملة لكافة اجزاء المشروع مع الدور السكنية مع محطة التقوية","جملة","جملة ",8000000,8000000]
[null,"المجموع / ",null,null,null,{"$f":"SUM(F187)","v":8000000}]
[null,"منظومة حريق "]
[1,"تجهيز المواد والمعدات اللازمة والقيام بعمل منظومة حريق متكاملة لكافة اجزاء المشروع  مع محطة التقوية","جملة","جملة ",12000000,12000000]
[null,"المجموع / ",null,null,null,{"$f":"SUM(F190)","v":12000000}]
[null,"منظومة مراقبة"]
[1,"تجهيز المواد والمعدات اللازمة والقيام بعمل منظومة مراقبة متطورة ومتكاملة لكافة اجزاء المشروع مع الدور السكنية مع محطة التقوية","جملة","جملة ",6000000,6000000]
[null,"المجموع / ",null,null,null,{"$f":"SUM(F193)","v":6000000}]
[null,"منظومة سيطرة مركزية"]
[1,"تجهيز ونصب بورد سيطرة مركزي متكامل (BLC) خاص بالسيطرة على كافة اجزاء المشروع ويتم تحديد المواصفات المطلوبة من قبل دائرة المهندس المقيم","جملة","جملة ",20000000,20000000]
[null,"المجموع / ",null,null,null,{"$f":"SUM(F196)","v":20000000}]
[null,"منظومة تبريد"]
[1,"تجهيز المواد والمعدات اللازمة والقيام بعمل منظومة تبريد لكل جزء من اجزاء المشروع مع المحطة ","جملة","جملة ",20000000,20000000]
[null,"المجموع / ",null,null,null,{"$f":"SUM(F199)","v":20000000}]
[null,"منظومة اتصالات"]
[1,"عمل منظومة اتصالات داخلية","جملة","جملة ",10000000,10000000]
[null,"المجموع / ",null,null,null,{"$f":"SUM(F202)","v":10000000}]
[null,"اثاث للمشروع"]
[null,"تجهيز المشروع مع المحطة باثاث متكامل ","جملة","جملة ",10000000,10000000]
[null,"المجموع / ",null,null,null,{"$f":"SUM(F205)","v":10000000}]
[null,"حدائق للمشروع"]
[null,"تجهيز الادوات والمعدات الازمة والقيام بعمل حدائق في المشروع ويشمل (نقل الزميج (خالي من الادغال) والزراعة بالثيل والاوراد مع تشجير المشروع بالاشجار التي يحددها المهندس المقيم ) مع كل ما يتطلبه العمل من عمل منظومة خاصة بسقي الحدائق وحسب توجيهات المهندس المشرف ","جملة","جملة ",8000000,8000000]
[null,"المجموع / ",null,null,null,{"$f":"SUM(F208)","v":8000000}]
[null,"محطة تقوية الصينية "]
[1,"تجهيز وربط ونصب وفحص مضخات الدفع الصينية (سبلت كيس) (600م3/سا ×70م) مع المحرك الكهربائي  مع ستارتر جديد ويتظمن   ( قاطع دورة وكونتاكتر واوفرلود وتايمر وكيج اضوية ومصابيح واسلاك وكيبلات )وتكون لوحات السيطرة الرئيسية ذات نمط تشغيل (سوفت ستار) مع تجهيز المحركات الكهربائية بحساسات حرارية (متحسس حراري) وميكانيكا  يحتوي على قاطع دوره نوع (RCCD) مع تجهيز قابلو (يتم تحديد حجمه حسب الكيلوواطية للمضخة من المضخة الى الستارتر ومن الستارتر الى لوحة السيطرة الرئيسية مع كل ما يتطلبه العمل على ان تكون جميع التسليكات الداخلية للبورد الكهربائي بواسطة بازبارات نحاسية وحسب توجيهات المهندس المشرف مع تجهيز مواد احتياطية للمضخة تشم ( بولبرنات مع شفت مع بشارة مع اطواق ) وعلى ان تكون جميع المواد المجهزه غربية المنشا وجديدة","عدد",3,50000000,{"$f":"E211*D211","v":150000000}]
[2,"تجهيز وربط ونصب وفحص مضخات الدفع الصينية (سبلت كيس) (300م3/سا ×70م) مع المحرك الكهربائي  مع ستارتر جديد ويتظمن   ( قاطع دورة وكونتاكتر واوفرلود وتايمر وكيج اضوية ومصابيح واسلاك وكيبلات )وتكون لوحات السيطرة الرئيسية ذات نمط تشغيل (سوفت ستار) مع تجهيز المحركات الكهربائية بحساسات حرارية (متحسس حراري) وميكانيكا  يحتوي على قاطع دوره نوع (RCCD) مع تجهيز قابلو (يتم تحديد حجمه حسب الكيلوواطية للمضخة من المضخة الى الستارتر ومن الستارتر الى لوحة السيطرة الرئيسية مع كل ما يتطلبه العمل على ان تكون جميع التسليكات الداخلية للبورد الكهربائي بواسطة بازبارات نحاسية وحسب توجيهات المهندس المشرف مع تجهيز مواد احتياطية للمضخة تشم ( بولبرنات مع شفت مع بشارة مع اطواق ) وعلى ان تكون جميع المواد المجهزه غربية المنشا وجديدة","عدد",2,30000000,60000000]
[null,"تجهيز ونصب وفحص وتشغيل مولدة جديدة (750 كي في أي ) منشا غربي . مع عمل قاعدة كونكريتية مسلحة وحسب الابعاد للمولدة المجهزة والقيام بتجهيز ونصب جنج اوفر سويج مع كل مولدة منشا غربي مع تجهيز ومد كيبل مسلح (PVC) قياس (4(3×240+120))ملم2 وحسب الاطوال في موقع العمل مع القيام بتجهيز وتركيب خزان وقود سعة 20 م3 . لكل مولد وحسب المواصفات الفنية وتوجيهات المهندس المشرف .","عدد",1,190000000,190000000]
[3,"تجهيز المواد والمعدات والقيام بقلع كافة (البياض + اللبخ الخارجي) واعادة العمل بها من جديد مع رفع كافة الانقاض خارج حدود البلدية مع ما يتطلبه العمل وحسب المواصفات الفنية وتوجيه دائرة المهندس المقيم.","م2",760,15000,11400000]
[4,"تجهيز المواد والمعدات والقيام بتركيب زجاج جديد للنوافذ ومن النوع البلاستيكي . ويشمل العمل قلع الزجاج القديم واعادة تركيب الزجاج الجديد وباستخدام المعجون . ويشمل العمل طلاء الشبابيك باستخدام الصبغ الدهني ثلاث قوط  مع عمل كتائب خارجية لكل شباك وحسب توجيهات المهندس المشرف.","م2",100,10000,1000000]
[5,"تجهيز المواد والقيام بقلع السيراميك للجدران والارضية للحمامات وستبداله بسيراميك  جديد نوعية جيدة ( اسباني ) ويشمل العمل رفع كافة الانقاض وطرحها خارج المشروع وحسب توجيهات المهندس المشرف . ","م2",60,20000,1200000]
[6,"تجهيز مواد ومعدات والقيام بقلع الابواب القديمة  ومن ثم تجهيز وتركيب باب خشب (صاج كبس وجهين) بابعاد (2×1.5)م مع الاطار والكيلون نوعية جيدة  ويشمل العمل تكسير واعادة الانهاءات حول الباب وحسب توجيهات المهندس المشرف .","عدد",12,400000,4800000]
[7,"تجهيز مواد ومعدات والقيام بتركيب خزان ماء مغلون بابعاد (1.25×1.25×1.25)م ويشمل السعر كافة الملحقات المائية التي يتطلبها العمل ","عدد",3,250000,750000]
[8,"تجهيز مواد ومعدات والقيام بتركيب سخان ماء سعة (120) لتر كهربائي نوعية جيدة ويشمل العمل كافة الملحقات والتاسيسات المائية والكهربائية التي يتطلبها العمل.","عدد",3,250000,750000]
[9,"تبديل كافة التاسيسات الكهربائية والانارة ","جملة","جملة ",4000000,4000000]
[10,"تجهيز المواد والمعدات اللازمة والقيام بفتح جميع الاقفال الكهربائية والقيام بتجهيز وربط وتشغيل وتسليك اقفال جديدة مع كل ما يتطلبة العمل وتوجيهات المهندس المشرف  وكما هو مدرج .\n• قفل كهربائي قياس 300 ملم .عدد/3\n• جك ولف 300 ملم . عدد/3\n","جملة","جملة ",8000000,8000000]
[11,"تجهيز المواد والمعدات والقيام بعمل حوض تغطيس لاسطوانات الكلور مع ما يتطلبه العمل من غواطس وتصريف للماء وعمل مرشة للحوض مع تجهيز كرين وحسب توجيهات المهندس المشرف","جملة","جملة ",40000000,40000000]
[12,"تجهيز المواد والمعدات اللازمة والقيام بعمل سقيفة لاسطوانات الكلور مع كل ما يتطلبه العمل","جملة","جملة ",12000000,12000000]
[13,"تجهيز المواد والمعدات اللازمة والقيام باعادة صب الشوارع الداخلية للمحطة بعرض 6متر \nمك 15 سم بالكونكريت المسلح باستخدام شبكات التسليح (BRC) وبنسبة خلط 1:2:4 .مع عمل مفاصل تمدد لكل (5متر ) مع كل ما يتطلبة العمل وتوجيهات المهندس المشرف .\n","م.ط",200,150000,{"$f":"E224*D224","v":30000000}]
[14,"تجهيز المواد والمعدات اللازمة والقيام بعمل ارصفة كونكريتية للشوارع الداخلية بعرض 1متر وباستخدام الكونكريت بنسبة خلط (1:2:4) وبسمك 15 سم مع عمل مفاصل تمدد لكل (5متر ) مع كل ما يتطلبة العمل وتوجيهات المهندس المشرف .","جملة","جملة ",5000000,5000000]
[15,"تجهيز ونصب وربط وتشغيل اعمدة انارة للشوارع الداخلية للمحطة مع كل ما يتطلبه العمل","جملة","جملة ",5000000,5000000]
[null,"المجموع / ",null,null,null,{"$f":"SUM(F211:F226)","v":523900000}]
["المجموع الكلي/  فقط لا غير",{"$nulls":4},{"$f":"SUM(F14+F23+F35+F54+F65+F78+F86+F89+F101+F105+F114+F119+F127+F137+F141+F152+F157+F161+F175+F185+F188+F191+F194+F197+F200+F203+F206+F209+F227)","v":5114260000}]
[]
[]
[]
["                    المهندس                                   المهندس                                   المهندس             "]
["             عواد متعب تركي                   مصعب عبد الحق اسماعيل                 علي جبار هلال             "]
["                    عضو                                       عضو                                 رئيس اللجنة             "]
[]
[]
[]
["                                        المهندس                                   المهندس                                                "]
["                                علي فاضل يوسف                          محمود وليد خالد                            "]
["                                        عضو                                       عضو                                              "]

{"sheet":"الملغاة","index":1,"n_rows":19,"n_cols":7,"rows_kept":19,"cut":false,"hidden":true,"merged":[[0,0,0,2],[1,0,1,6],[4,8,4,12],[17,0,17,6],[18,0,18,6],[6,0,6,5],[10,0,10,6],[11,0,11,6],[12,0,12,6],[16,0,16,6]]}
["    مديرية ماء صلاح الدين"]
["اعمال صيانة مجمعات القادسية عدد3 سعة 200م3/س - (الفقرات الملغاة)"]
["ت","التسلسل في الكشف الاصلي","التفاصيل","الوحدة","الكمية","السعر $","المبلغ $"]
[1,"خامسا (1)","تجهيز ونصب مضخة ماء افقية للسحب (end sction) بمواصفات (220م3/س × 40م) (1500 دورة/دقيقة) ذات بشارة وشفت من الستنلس ستيل مع تجهيز وتثبيت ستارترات التشغيل التي تلائم سعة المحرك ذو مقاييس رقمية (دجيتل)  للفولتية والامبيرية على ان يكون الربط بين اجزاء الستارتر الكهربائي بواسطة بازبارات من النحاس حيث تكون المضخات من مناشيء غربية مشفوعة بشهادة منشأ من البلد المصنع شاملا السعر اعمال تقطيع وربط وتركيب الانابيب والعكوس والتقاسيم والواشرات واية مستلزمات اخرى لاتمام العمل وحسب المواصفات الفنية","عدد",2,25000,{"$f":"E4*F4","v":50000}]
[2,"خامسا (2)","تجهيز ونصب مضخة ماء افقية للسحب (سبلت كيس) بمواصفات (420م3/س × 40م) (1500 دورة/دقيقة) ذات بشارة وشفت من الستنلس ستيل مع تجهيز وتثبيت ستارترات التشغيل التي تلائم سعة المحرك ذو مقاييس رقمية (دجيتل)  للفولتية والامبيرية على ان يكون الربط بين اجزاء الستارتر الكهربائي بواسطة بازبارات من النحاس حيث تكون المضخات من مناشيء غربية مشفوعة بشهادة منشأ من البلد المصنع شاملا السعر اعمال تقطيع وربط وتركيب الانابيب والعكوس والتقاسيم والواشرات واية مستلزمات اخرى لاتمام العمل وحسب المواصفات الفنية","عدد",2,39000,{"$f":"E5*F5","v":78000}]
[{"$f":"A5+1","v":3},"خامسا (7)","تجهيز ونصب مضخة ماء الغسيل العكسي بمواصفات (320م3/س × 20م) (3000 دورة/دقيقة) ذات شفت مصنوع من الستنلس ستيل وبشارة مصنوعة من البرونز مع تجهيز وتثبيت ستارترات التشغيل التي تلائم سعة المحرك ذو مقاييس رقمية (دجيتل)  للفولتية والامبيرية على ان يكون الربط بين اجزاء الستارتر الكهربائي بواسطة بازبارات من النحاس حيث تكون المضخات من مناشيء غربية مشفوعة بشهادة منشأ من البلد المصنع شاملا السعر اعمال تقطيع وربط وتركيب الانابيب والعكوس والتقاسيم والواشرات واية مستلزمات اخرى لاتمام العمل مع تجهيز كوبلن احتياط لكل مضخة وحسب المواصفات الفنية","عدد",3,13000,{"$f":"E6*F6","v":39000}]
["المجموع/ مائة وسبعة وستون الف دولار امريكي فقط لا غير",{"$nulls":5},{"$f":"SUM(G4:G6)","v":167000}]
[]
[]
[]
["                    المهندس                                   المهندس                                   المهندس             "]
["             عواد متعب تركي                   مصعب عبد الحق اسماعيل                 وليد خالد عبد الرحمن             "]
["                    عضو                                       عضو                                 رئيس اللجنة             "]
[]
[]
[]
["                                        المهندس                                   المهندس                                                "]
["                                 احمد خلف صالح                          عدنان شجاع احمد                             "]
["                                        عضو                                       عضو                                              "]

{"sheet":"Sheet2","index":2,"n_rows":80,"n_cols":6,"rows_kept":80,"cut":false,"hidden":false,"merged":[[79,1,79,4],[0,1,0,5],[21,1,21,4],[22,1,22,4],[60,1,60,4],[1,0,1,5],[13,1,13,4],[20,1,20,4],[46,1,46,4]]}
[null,"Bills of Quantity\nITB 127/17 Rehabilitation of Beji water project (3000 m3/h) With Al Sinieah old station (600 m3/h)- Salahdien Governorate / Stage One"]
["اعمال اعادة تاهيل مشروع ماء بيجي الموحد (3000 م3/ساعة) مع محطة تقوية الصينية القديمة ( 600 م3/ساعة) "]
["#","Item Description ","Unit","Qty","Price $","Total $"]
["A","Low lift pump station"]
[null," محطة السحب الواطئ",null,null,null," "]
[1,"Supply materials, tools and manpower, to install new ductial pipes double flange between low lift pump station and Strainers (withdrawel suction units)  with all  fittings required to make job complete in good condition.The work includes dismantling the old pipes and replaced by new one with all requirements & accessories to complete the work. Ductile pipes Diametes as following:"]
["1-A","ductial pipe  diameter 500 mm with all accessories","m.l",150]
["1-B","ductial pipe  diameter 300 mm with all accessories","m.l",90]
[2,"Supply materials, tools and manpower, to install and  test a  Strainers with all   works required .The work includes dismantling the old strainers and replaced by new one with all requirements & accessories to complete the work in a good condition .                                                                   Strainers Diametes as following: "]
["2-A","  Strainer Diameter (500) mm ","Ea",5]
["2-B","  Strainer Diameter (300) mm ","Ea",3]
[3,"Supply and Install  new Low lift  horizontal pump , split- case, best origin and brand (IDEAL, Caprari, KSB, Wilo, Grundfos, or equivalant complying with required specifications in compliance sheet), stainless steel shaft & impeller of specification (Q = 900 m3/hr, H = 20 m), Speed 1500 rpm,  400 V, 50 Hz, IP 55 F CLASS,3PH Electrical motor. Contractor shall submit technical speficiations and catalogs of the pumps and will provide a supplier’s pump efficiency curve for the pump, to ensure that the pumps installed are efficient and not simply matching the requested flow rate and head.   The work includes dismantling the damaged pumps and submitting them to the plant administration, proper cable feeder to connect the  pumps systematically with cables using proper cable joints with all requirements to achieve a complete electrical connection, testing and successfully operation.The work & price includes providing any fittings required, pipe modification and paint all with Jotun paint. All connections needed & all accessories as to instructions of site engineer and site request. Work includes, Supply, install, connect and operate new electrical starter for each horizontal pump and all cables connections required, accessories and labors for interlock connection, protection, indicators, and fixing, in additional to all requirements to complete a good work.","Ea",1,null,{"$f":"E12*D12","v":0}]
[4,"Supply, connect & install all (Input & Output) Gate valves of LL pump. The work includes dismantling the old valves & replaced by new one. Input gate valve with 500mm diameter & output gate valve 350mm with check-valve and flexible joint.The price include painting works  using anti-rust & then oil paints and complete accessories and requirements to complete a good work","Ea",1]
[null,"Sub-total",null,null,null,{"$f":"SUM(F7:F13)","v":0}]
["B","High Lift Pump Station"]
[null,"محطة الدفع"]
[1,"Supply and Install  new High lift  horizontal pump for south of Baiji , split- case, best origin and brand (IDEAL, Caprari, KSB, Wilo, Grundfos, or equivalant complying with required specifications in compliance sheet)  stainless steel shaft & Bronze impeller, of specification (Q = 420 m3/h, H = 80 m), Speed 1500 rpm,  400 V, 50 Hz, IP 55 F CLASS,3PH Electrical motor. Contractor shall submit technical speficiations and with catalogs of the pumps and will provide a supplier’s pump efficiency curve for the pump, to ensure that the pumps installed are efficient and not simply matching the requested flow rate and head.   The work includes dismantling the damaged pumps and submitting them to the plant administration, proper cable feeder to connect the  pumps systematically with cables using proper cable joints with all requirements to achieve a complete electrical connection, testing and successfully operation.The work & price includes providing any fittings required, pipe modification and paint all with Jotun paint. All connections needed & all accessories as to instructions of site engineer and site request. Work includes, Supply, install, connect and operate new electrical starter for each horizontal pump and all cables connections required, accessories and labors for interlock connection, protection, indicators, and fixing, in additional to all requirements to complete a good work.","Ea",1]
[2,"Supply and Install  new High lift  horizontal pump for North of Baiji , split- case, best origin and brand (IDEAL, Caprari, KSB, Wilo, Grundfos, or equivalant complying required specifications in compliance sheet)  stainless steel shaft & Bronze impeller, of specification (Q = 720 m3/h, H = 70 m), Speed 1500 rpm,  400 V, 50 Hz, IP 55 F CLASS,3PH Electrical motor. Contractor shall submit technical speficiations and with catalogs of the pumps and will provide a supplier’s pump efficiency curve for the pump, to ensure that the pumps installed are efficient and not simply matching the requested flow rate and head.   The work includes dismantling the damaged pumps and submitting them to the plant administration, proper cable feeder to connect the  pumps systematically with cables using proper cable joints with all requirements to achieve a complete electrical connection, testing and successfully operation.The work & price includes providing any fittings required, pipe modification and paint all with Jotun paint. All connections needed & all accessories as to instructions of site engineer and site request. Work includes, Supply, install, connect and operate new electrical starter for each horizontal pump and all cables connections required, accessories and labors for interlock connection, protection, indicators, and fixing, in additional to all requirements to complete a good work.","Ea",1]
[3,"Supply materials, tools and manpower, to replace the shock absorption reducaction Steel tank from carbon steel 6mm with all requirements to complete a good work.","Ea",4]
[4,"Supply, connect & install all (Input & Output) Gate valves of HL pumps. The work includes dismantling the old valves & replaced by new one. for 720 m3/hr pump, Input gate valve with 500mm diameter & output gate valve 400mm with check-valve and flexible joints. While for 420 m3/hr pump, Input gate valve with350mm diameter & output gate valve 250mm with check-valve and flexible jointsThe price include painting works  using anti-rust & then oil paints and complete accessories and requirements to complete a good work","Ea",2]
[null,"Sub-total",null,null,null,{"$f":"SUM(F17:F20)","v":0}]
["C","Electrical works"]
[null,"الاعمال الكهربائية"]
[1," L.L Station "]
[null," محطة السحب الواطئ"]
[1.1000000000000001,"LL station: Provision of materials and work to supply and install new electrical main board MDB (IP55) with three phase circuit breakers and other electrical components best quality, including;\n• Main circuit breaker MCCB (adjustable1250 Amp) (1 no.).\n• Circuit breaker (500 Amp.) for LL pumps (5 nos).                              • Circuit breaker (225 Amp.) for LL pumps (3 nos).                              • Circuit breaker (250 Amp.) for station services & lighting (1 no).        • All circuits of Magnatic & Heat protection type RCCD  • Residual Current Circuit breaker need to be installed for earth leakage protection. \nPrice also includes; supply and install, digital multi-meter sets (Amp and Volt), selector switch, indicating lamps, push buttons, under/over voltage& phase failure protection with all required connection cables, bus-bar, materials and accessories such as , terminals, etc. to implement the work accurately & properly. Testing and successfully operating. Price include supply, install & operate Air-Condition Stand split unit 4 ton with complete requirements to complete a good work.  Short circuit breaking capacity of MCCB shall not be less than 35 kA.","LS",1]
[1.2,"Provision of materials and work to supply, lay, extend and connect new low tension power cable feeder (Saudi, jordanian or Turkish origin) for LL station of (3x240 + 120mm2) from the main electric control station  to the MDB side with all required materials & measures (trays, cover, flexible pipe, gland, terminals, clamps etc.), labors and tools to implement the work properly and neatly. ","ml",200]
[2,"H.L Pump station "]
[null,"محطة الدفع"]
[2.1,"HL station: Provision of materials and work to supply and install new electrical main board MDB (IP55) with three phase circuit breakers and other electrical components best quality, including;\n• Main circuit breaker MCCB (adjustable 3500 Amp) (1 no.).               • Circuit breaker (1000 Amp.) for HL pumps (2 nos).                           • Circuit breaker (750 Amp.) for HL pumps (4 nos).   \n• Circuit breaker (500 Amp.) for HL pumps (2 nos).                             • Circuit breaker (400 Amp.) for HL pumps (2 nos).                             • Circuit breaker (300 Amp.) for HL pumps (2 nos).                             • Circuit breaker (150 Amp.) for LL pumps (2 nos).                             • Circuit breaker (250 Amp.) for station services & lighting (1 no).       • All circuits of Magnatic & Heat protection type RCCD.   • Residual Current Circuit breaker need to be installed for earth leakage protection.\nPrice also includes; supply and install, digital multi-meter sets (Amp and Volt), selector switch, indicating lamps, push buttons, under/over voltage & phase failure protection with all required connection cables, bus-bar, materials and accessories such as , terminals, etc. to implement the work accurately & properly. Testing and successfully operating. Price include supply, install & operate Air-Condition Stand split unit 4 ton with complete requirements to complete a good work.  Short circuit breaking capacity of MCCB shall not be less than 35 kA.","LS",1]
[2.2000000000000002,"Provision of materials and work to supply, lay, extend and connect new low tension power cable feeder (Saudi, jordanian or Turkish origin) for LL station of (3x240 + 120mm2) from the main electric control station  to the MDB side with all required materials & measures (trays, cover, flexible pipe, gland, terminals, clamps etc.), labors and tools to implement the work properly and neatly. ","ml",200]
[3,"Filters Station"]
[null,"ج - محطة الفلاتر"]
[3.1,"Filter station: Provision of materials and work to supply and install new electrical main board MDB (IP55) with three phase circuit breakers and other electrical components best quality, including;\n• Main circuit breaker MCCB (adjustable1250 Amp) (1 no.).\n• Circuit breaker (250 Amp.) for filters pumps (3 nos).                         • Circuit breaker (150 Amp.) for filter station services (1 no).               • Circuit breaker (400 Amp.) for Back-wash motors ,gates, valves and actuators (1 no).                                                                             • All circuits of Magnatic & Heat protection type RCCD  • Residual Current Circuit breaker need to be installed for earth leakage protection.\nPrice also includes; supply and install, digital multi-meter sets (Amp and Volt), selector switch, indicating lamps, push buttons, under/over voltage & phase failure protection with all required connection cables, bus-bar, materials and accessories such as , terminals, etc. to implement the work accurately & properly. Testing and successfully operating. Price include supply, install & operate Air-Condition Stand split unit 4 ton with complete requirements to complete a good work.  Short circuit breaking capacity of MCCB shall not be less than 35 kA.","LS",1]
[4,"Chemicals Station"]
[null," محطة الكيمياويات"]
[4.0999999999999996,"Chemical station: Provision of materials and work to supply and install new electrical main board MDB (IP55) with three phase circuit breakers and other electrical components best quality, including;\n• Main circuit breaker MCCB (adjustable 750 Amp) (1 no.).\n• Circuit breaker (400 Amp.) for boosting pumps (2 nos).                    • Circuit breaker (100 Amp.) for different boosting & chemical devices & pumps (20 nos).                                                                    • Circuit breaker (100 Amp.) for station services, lighting and others devices (1 no).                                                                                  • All circuits of Magnatic & Heat protection type RCCD   • Residual Current Circuit breaker need to be installed for earth leakage protection.\nPrice also includes; supply and install, digital multi-meter sets (Amp and Volt), selector switch, indicating lamps, push buttons, under/over voltage & phase failure protection with all required connection cables, bus-bar, materials and accessories such as , terminals, etc. to implement the work accurately & properly. Testing and successfully operating. Price include supply, install & operate Air-Condition split unit 2 ton with complete requirements to complete a good work.  Short circuit breaking capacity of MCCB shall not be less than 35 kA.","LS",1]
[5,"Clays Station"]
[null," محطة الاطيان"]
[5.0999999999999996,"Clay station: Provision of materials and work to supply and install new electrical main board MDB (IP55) with three phase circuit breakers and other electrical components best quality, including;\n• Main circuit breaker MCCB (adjustable 500 Amp) (1 no.).\n• Circuit breaker (125 Amp.) for clay scrapers motors (3 nos).           • Circuit breaker (100 Amp.) for station services, lighting and others devices (1 no).                                                                                       • All circuits of Magnatic & Heat protection type RCCD  • Residual Current Circuit breaker need to be installed for earth leakage protection.\nPrice also includes; supply and install, digital multi-meter sets (Amp and Volt), selector switch, indicating lamps, push buttons, under/over voltage & phase failure protection with all required connection cables, bus-bar, materials and accessories such as , terminals, etc. to implement the work accurately & properly. Testing and successfully operating. Price include supply, install & operate Air-Condition split unit 2 ton with complete requirements to complete a good work.  Short circuit breaking capacity of MCCB shall not be less than 35 kA.","LS",1]
[6,"Transformer station "]
[null," محطة المحولات"]
[6.1," Supply , install ,connect and commission of floor mounted Electrical In-door  transformer (Rated power 4000 KVA - 11.0 / 0.416 KV) , Vector Group Dyn11, Frequency 50 Hz, Cooling type ONAN               best quality compliant with Iraqi MOE specifications.\n  Work include, supplying and erecting all required accessories for floor mounting in specified transformer room nearby electric substation, (connection with the national Grid will be taken over by concerened authority). Vendor should submit, Transformer test report with technical details compliant with Iraqi MOE specifications \nThe work includes; the required modification for the room (door, floor and ventilation openings, etc) to fit the installation requiremants, (connection with the national Grid side will be taken over by authority).  Price also includes; Supply, install & connect all required electrrical and mechanical components to complete the job neatly and according to Iraqi national electricity standards.","Ea",1]
[6.2,"Provision of materials, labors, and equipment to supply,  install , test and commission  a brand new three 11 kV Switchboards consist of ( 11 kV  incoming feeder,  Two feeders for 2 MVA and 4 MVA transformers).  Power connections are made between functional units within a switchboard via a single busbar. Three switchboards for 11 kV incoming feeder and two 11 kV out-going feeders with withdrawable circuit breaker 1250 A.    Each functional unit combines all the components which are required to fulfil this function (detail shown in related drawing):\n(A). The cubicles include  busbars, bushing, withdrawable parts (vacuum circuit breaker, voltage transformer), connections, earthing switch and current transformer.                     (B). Measuring instruments (Voltmeter, Ammeter, kWh & KVArh), protection relays (overcurrent, earth fault, under voltage, over voltage earth fault and auto-recloser), control and monitoring system (annunciator, position indicator, selector switch, push button, indication lamps ...etc.).                                                                                                    (C). One number of Service truck to be provided.                                                                (D) Suppy, install and commission  110V DC battery bank 40Ah with suitable size of battery charger and all requirements from cables, joints ...etc..,                                        (E) The contractor shall  provide the catalogues, manuals and calculations for approval for MCSG and battery system.   The contractor shouls submitted a single line diagram and details of control and protection schemes for approval from monitoring committee before manufacturing. Details about the MCSG panel are given in the attached specifications, compliance sheets and drawing.","EA",1]
[6.3," Supply , install ,connect and commission of Electrical In-door transformer (Rated power 2000 KVA - 11.0 / 0.416 KV)  best quality consist of following components: Transformer, Rated power 2000 kVA, Voltage 11000 V /416 V, Vector Group Dyn11, Frequency 50 Hz, Cooling type ONAN                                                              Vendor should submit, Transformer test report with technical details compliant with Iraqi MOE specifications, supplying and erecting all required accessories for floor mounting in specified transformer room nearby LL station, (connection with the national Grid will be taken over by concerened authority). Work & price includes casting of reinfoeced concrete base using two layers of mesh BRC gage 63 with concrete strength 20 Mpa. Then construct  pre-fabricated room to keep transformer with dimensions 5x5m using Sandwitch panels and all requirements to complete a good work. \n","EA",1]
[6.4,"Supply materials, tools and manpower to install main control board includes, two 5000 Amp main circuit breaker (motrize), Contactors, Circuits for lighting and service, Voltage and Amp gauge and bazbar, inside iron board 2mm thikness and painted by heat paint. Each Bazbar has circuit breaker type (RCCD). the price include put the interior wire conection inside bazbar with all gauge all required to make job complete. ","EA",1]
[null,"Sub-total",null,null,null,{"$f":"SUM(F26:F46)","v":0}]
["D","Sedimentation Tanks works"]
[null," اعمال احواض الترسيب"]
[1,"Supply materials, tools and manpower to maintian and replace all damage parts for sidimentation tank capacity 1000 m3 with all work requirements to make job complete as below:"]
["1-A"," Supply and install new 4 sets ( front pair & rear pair) heavy duty rubber wheel (Dia 40 cm, width 10 cm) fit for the existing platform movement, the circular rail and the tank requirements with all electrical connections (cable feeder, complete electrical control panel, etc.), testing and operating successfully","Ea",3]
["1-B","Supply and Install circular serrated plate of sedimintation tank using stainless steel plate, thikness 3mm and width 30 cm best quality. Work includes dismantling plate & replace by new one.S.steel V-notches at the inner circumference of (3) mm thick. with all requirements (welding, bolts, support, etc.), painting the inner surface with 3 Lys of food grade epoxy paint for the immersed parts and in touch with water and oil paint for the steel bridge completely after adequate prime layers. ","ml",1200]
["1-C","Provision of materials, tools, and labor to clean out and wash out the circulated concrete tanks by removal all the accumulative sludge and heavy stacks at (wall & bottom), unclogging the drain, delivery & over-flow openings and pipes.","Ea",3]
[2,"Provision of materials and work to supply and install new motor Scraper of (3 kW), (6.5 Amp), with gearbox capacity (1500 r.p.m) of best origin and (S.steel shaft & propeller) fit to the tank depth and standard requirements. The work includes; required steel support, supply and extend new cable of proper (size and length), new (integrated control panel of best origin components), protection shed, wiring and all electrical connections to complete the job properly, testing and operating successfully.","Ea",3]
[3,"Provision of materials and work to supply and install new flash mixer motor of (2.2) kW, (4.8 Amp) with gearbox capacity (250 r.p.m) of best origin and (S.steel shaft & propeller) fit to the tank depth and standard requirements.The work includes; required steel support, supply and extend new cable of proper (size and length), new (integrated control panel of best origin components), protection shed, wiring and all electrical connections to complete the job properly, testing and operating successfully.","Ea",6]
[4,"Provision of materials and work to supply and install newnew flocculator  (1.5) kW, (3.7 Amp) with gearbox capacity (80-120 r.p.m) of best origin and (S.steel shaft & propeller) fit to the tank depth and standard requirements.The work includes; required steel support, supply and extend new cable of proper (size and length), new (integrated control panel of best origin components), protection shed, wiring and all electrical connections to complete the job properly, testing and operating successfully.","Ea",3]
[5,"Supply and Install brand new , best origin, Clay pump (240 m3 / hr × 7 m) electric motor with a new starter includes (boycotted the session, contactor ,overload ,Timer ,Cage lights , lamps and cables). The main control-panel (Soft Star) with processing electric motors sensors thermal and mechanics sensors contain circuit breaker with suit asbuilt Cable  connect the pump, starters and main control board. the price include supply spear parts for the pump ( Boliberns, shafts, and elbow)  with all required connections to implement the job neatly. Testing and successfully operating and all requirements to complete a good work.  According to the enclosed technical data sheet.","Ea",2]
[6,"Provision of materials, tools, labor and machine to repair and refunction the circular clarifier steel structure (the platform & scraper) to ensure complete restoration as original design. Work includes; reassemble the steel structure (some dismantled parts existed on site), replace, modify and add any missing / defective parts using appropriate steel sections fit the settling process requirements, supply and install mud - scraping rubber with all requirements (welding, bolts, support, etc.), painting the inner surface with 3 Lys of food grade epoxy paint for the immersed parts and in touch with water and oil paint for the steel bridge completely after adequate prime layers.","Ea",3]
[7,"Provision of materials, tools, labor and machine to replace all water pipes, valves and elbows for water outlet part in sedimintation tank  with all requirements to complete a good work.","LS",1]
[8," Sedimintation Tanks: Provision of materials and work to supply and install new electrical main board MDB (IP55) with circuit breakers and other electrical components best quality, including;\n• Main circuit breaker MCCB (adjustable 250 Amp) (1 no.).                  \n• Starters for clay scrapers motors,  Flash mixers, and flocculator (12 nos).                                                                               • Supply & installation of 4 Nos. of 3 phase MCCB 60A. Short circuit breaking capacity of MCCB shall not be less than 35 kA.","LS",1]
[null,"Sub-total",null,null,null,{"$f":"SUM(F50:F60)","v":0}]
["E","Chemical works"]
[null," اعمال الكيمياويات"]
[1,"Provision labors, planet, equipment, and materials to supply and install  new (20) kg/h chlorinator (ALLDOS, Grunfos device or equivalent of western origin), with injector and copper piping work. The work includes; manufacturing proper frame for installation, make the required preparation to install copper & P.V.C. pipes with all fittings and connections. Testing, and operating the chlorinator functionally and successfully.The price include re-install required piping connections for 300m distant from Chloinator station to Sedimintation tank with all accessories & requirements to complete a good work.","Ea",2]
[2,"Supply and install new booster pumps of capacity (Q = 5 m3/h, H = 110m), LOWARA, Grundfos or equivalent of western origin. The work includes supply and install new suitable G.Steel & PVC pipes of (40/50) mm with fittings as per required, ball valve & brass strainer, electrical connections & flexible hose; new suitable electrical cable (length & size), proper steel base & providing all required modifications, materials and accessories to implement the work accurately, properly and neatly, testing and successfully operating.","Ea",2]
[3,"Provision labors, tools, equipment, and materials to supply and install  new Alum dosing pump, western origin, (INJECTA, Grundfos, Alldos brand or equivalent )of capacity (Q= 1000 l/hr, 5-10 bar). The work includes; Install new alum dosing pump on manufactured steel frame with all required modification, supply and install proper cable length & size fit to the equipment capacity from the main board to the alum dosing with all required electrical connections. Testing and operating the pump to insure proper performance. The price include re-install required piping connections for 200m distant from Alum station to flash mixer with all accessories & requirements to complete a good work.","Ea",2]
[4,"Supply and install alum mixer of capacity (3.0 kW, 1420 rpm, stainless steel shaft, and propeller), with gearbox brand new of western origin, and suitable cable (length & size). Work includes; supply and install new mixer on new tank with all requirements to complete the job perfectly (steel frame, oil paint, electrical connection, etc.). Testing and operating the mixer to insure proper performance.","Ea",2]
[5,"Supply materials, tools and manpower to clean out, wash out  and maintain allum mixing tank 48m3 with painting inside by anti-rust paints & outside by suitable best quality paints. Work include supply and install Allum powder boxes (Wood or anti-rust Steel) dimensions (4x1x1.5) m painting the inner face with (2Lys) of epoxy paint and then with (3 lys) of grade food paints. Work include all required modification, piping connections, and accessories with all requirements to complete a good work. ","Ea",2]
[null,"Sub-total",null,null,null,{"$f":"SUM(F64:F68)","v":0}]
["F","Generators"]
[null,"المولدات"]
[1,"Supply, install & operate new Sound proof electrical Diesel generator with prime rated power 2000 kVA, 1500 rpm/50 Hz/400 Volts (Silent Style) best origin and compliance with attached specifications and  technical data sheet with a complete work requirements. The work includes transportation, loading, unloading to site, dismantle and reinstall the existing sunshade using corrugated galvanized steel sheets, all required electrical cabling connections, operational materials e.g. batteries, oil, filters, etc., with testing and operating, according to the technical specification attached.The Price includes supply and connect  Change Over Switch  with minimum 3200 A rating,  with complete connection and commissioning reinforced cable (120+240x3) mm2 requirements to maintain perfect operation. All Necessary accessories  needs to Complete all electrical works. ","Ea",1]
[null,"Sub-total",null,null,null,{"$f":"SUM(F72)","v":0}]
["G","Accumulation Tank"]
[null,"خزان التجميع ( الخزان لارضي) "]
[1,"Provision of materials, tools, and labor to clean out and wash  the accumulative concrete tank (60x60 m) with its associated chambers by removal all the accumulative sludge and heavy stacks at (wall & bottom), unclogging the drain, delivery & over-flow openings and pipes. Work includes; full restoration & re-operating the whole controlling system of different (types and sizes) by replacing the missing / defective parts with all requirements to complete a perfect work.","LS",1]
[2,"Provision of materials, tools, and labor to replace the existing valves 400mm of accumulation tank by new one, full restoration & re-operating the whole controlling system of different (types and sizes) by replacing the missing / defective parts with all requirements to complete a perfect work.","Ea",10]
[3,"Provision of materials, tools, and labor to replace the existing metal grid of 16 ventilation openings with all requirements to complete a good work.","Ea",16]
[null,"Sub-total",null,null,null,{"$f":"SUM(F76:F78)","v":0}]
[null,"Total price of Rehabilitation Works in US Dollara",null,null,null,{"$f":"F79+F73+F69+F61+F47+F21+F14","v":0}]